Workbook

Sheet titul
F41: Ing. Štefan Dian
F42: Mgr. Miroslav Dubovský
F43: Odbor metodiky a tvorby informácií školstva
F56: Centrum vedecko-technických informácií SR
F57: Bratislava
F58: 2022

Sheet anotácia
E2: Sústava škôl a školských zariadení
E3: v číslach
E13: 2000 - 2021
B17: Anotácia úlohy:
B19: Cieľom analytického výstupu je poskytnúť súhrný pohľad na dynamiku
B20: kvantitatívneho vývoja sústavy škôl a školských zariadení od roku 2000
B21: a charakteristiku aktuálnej štruktúry z pohľadu regiónov a zriaďovateľa.
B22: Úvod materiálu obsahuje popis a schému sústavy, za ním nasleduje
B23: prehľad druhov škôl a školských zariadení v číselných ukazovateloch.
B31: Zdroje údajov a použité materiály:
B33: 1. Štatistická ročenka školstva SR.
B34: Bratislava : ÚIPŠ/CVTI SR, 2000 až 2021
B35: 2. Databázy údajov regionálneho školstva.
B36: Bratislava : ÚIPŠ/CVTI SR, 2000 až 2021
B40: Spracoval : | G40: e-mail:
B41: Ing. Štefan Dian | G41: Stefan.Dian@cvtisr.sk
B42: Mgr. Miroslav Dubovský | G42: Miroslav.Dubovsky@cvtisr.sk
B43: Odbor metodiky a tvorby informácií školstva
E52: Centrum vedecko-technických informácií SR
E53: Bratislava
E54: 2022

Sheet sústava ŠaŠZ

Sheet schéma
A2: Sústava škôl a školských zariadení v SR
A3: (2020 / 2021)
B7: 27
B8: 26
B9: 25
B10: 24
B11: 23
B12: 22
B13: 21 | C13: 16
B14: 20 | C14: 15
B15: 19 | C15: 14 | AA15: S= 17
B16: 18 | C16: 13 | I16: N= 15 010 | K16: T= 3 144 | Z16: N= 585 | AB16: T= 164
B17: 17 | C17: 12 | I17: Z= 72 776 | K17: U= 6 790 | R17: N= 40 803 | U17: T= 6 244 | Z17: Z= 3 197 | AB17: U= 902
B18: 16 | C18: 11 | I18: A= 13 921 | K18: Ub= 5581 | R18: Z= 121 470 | U18: U= 12 436 | Z18: A= 970 | AB18: Ub= 616
B19: 15 | C19: 10 | K19: S= 233 | R19: A= 30 098 | U19: Ub= 11 192 | X19: S= 416
B20: 14 | C20: 9
B21: 13 | C21: 8
B22: 12 | C22: 7
B23: 11 | C23: 6 | R23: N= 58 173 | U23: T= 24 625 | AL23: Z= 17 390
B24: 10 | C24: 5 | R24: Z= 468 540 | U24: U= 38 040 | AI24: Z= 168 787 | AL24: U= 578
B25: 9 | C25: 4 | R25: Od= 47 433 | U25: Ub= 35 755 | X25: S= 2 070 | AF25: Z= 33 062 | AI25: U= 7 634 | AL25: S= 38
B26: 8 | C26: 3 | AF26: T= 4 368 | AI26: S= 380
B27: 7 | C27: 2 | AF27: U= 4 957
B28: 6 | C28: 1 | AF28: S= 447
B29: 5 | R29: D= 173 170 | U29: U= 17 945
B30: 4 | R30: T= 9 039 | U30: S= 3 102
B31: 3
C34: Štatistické údaje sa vzťahujú k školskému roku 2021/2022 a k dennej forme stredoškolského štúdia.
AI35: Legenda:
C36: Poznámky: | AI36: N - novoprijatí
C37: - povinná školská dochádzka: dĺžka je 10 rokov; trvá najviac do konca školského roka, v ktorom žiak dovŕši 16. rok života. | AI37: D - deti v MŠ
C38: Žiaci začínajú spravidla povinnú školskú dochádzku v 1. ročníku ZŠ a končia v 1. ročníku v SŠ. Výnimky z toho upravuje | AI38: Z - žiaci
C39: zákon č. 245/2008 Z.z. v §19 až §22. | AI39: A - absolventi
C40: - nadväzujúce formy odborného vzdelávania: nadstavbové a pomaturitné štúdium v SOŠ | AI40: Od - žiaci odchádzajúci zo ZŠ
C41: - špeciálne školy: materské školy, základné školy, stredné školy, praktické školy a odborné učilištia | AI41: T - triedy
AI42: U - učitelia
E43: - tlačítko k údajovej časti (zo schémy na jednotlivé školy. zariadenia a zo škôl späť na schému) | AI43: Ub - učebne
AI44: S - školy

Sheet MŠ
I1: späť na schému
A2: Materské školy
A5: Materské školy (MŠ) podporujú osobnostný rozvoj detí v oblasti sociálno-emocionálnej, intelektuálnej, telesnej, morálnej, estetickej,
A6: rozvíjajú schopnosti a zručnosti, utvárajú predpoklady na ďalšie vzdelávanie. Výchova a vzdelávanie spravidla 3- až 5- ročných
A7: detí sa zabezpečuje prostredníctvom vzdelávacieho programu, ktorý poskytuje predprimárne vzdelanie.
A13: A. Dynamika vývoja materských škôl
A15: Vývoj ukazovateľov materských škôl od roku 2000
A16: Ukazovatele | B16: Rok
B17: 2000 | C17: 2001 | D17: 2002 | E17: 2003 | F17: 2004 | G17: 2005 | H17: 2006 | I17: 2007 | J17: 2008 | K17: 2009 | L17: 2010 | M17: 2011 | N17: 2012 | O17: 2013 | P17: 2014 | Q17: 2015 | R17: 2016 | S17: 2017 | T17: 2018 | U17: 2019 | V17: 2020 | W17: 2021
A18: deti | B18: 154232 | C18: 150587 | D18: 151125 | E18: 150718 | F18: 149232 | G18: 141814 | H18: 140014 | I18: 139374 | J18: 138186 | K18: 138496 | L18: 139239 | M18: 144130 | N18: 149511 | O18: 153059 | P18: 156402 | Q18: 157956 | R18: 159081 | S18: 160309 | T18: 162342 | U18: 165865 | V18: 166561 | W18: 173170
A19: triedy | B19: 7576 | C19: 7491 | D19: 7524 | E19: 7488 | F19: 7117 | G19: 6795 | H19: 6736 | I19: 6739 | J19: 6908 | K19: 7062 | L19: 7126 | M19: 7277 | N19: 7395 | O19: 7525.5 | P19: 7686 | Q19: 7868 | R19: 8041.5 | S19: 8171 | T19: 8325 | U19: 8505 | V19: 8577 | W19: 9039
A20: učitelia | B20: 15229 | C20: 15100 | D20: 15115 | E20: 14963 | F20: 13931 | G20: 13201 | H20: 13149 | I20: 13164 | J20: 13445 | K20: 13741 | L20: 13896 | M20: 14248 | N20: 14515 | O20: 14841 | P20: 15175 | Q20: 15565 | R20: 15949 | S20: 16290 | T20: 16636 | U20: 17078 | V20: 17292 | W20: 17945
A21: školy | B21: 3263 | C21: 3243 | D21: 3235 | E21: 3210 | F21: 3046 | G21: 2945 | H21: 2928 | I21: 2910 | J21: 2871 | K21: 2873 | L21: 2869 | M21: 2865 | N21: 2861 | O21: 2870 | P21: 2896 | Q21: 2935 | R21: 2959 | S21: 2984 | T21: 3001 | U21: 3022 | V21: 3042 | W21: 3102
W22: Zdroj: CVTI SR
A78: B. Štruktúra ukazovateľov materských škôl v školskom roku 2021/2022
A81: a ) podľa kraja
A83: Štruktúra ukazovateľov materských škôl podľa krajov SR | J83: šk.r. 2021/2022 | L83: Medziročné rozdiely (2021-2020)
A84: Ukazovatele | B84: Absolútne početnosti | L84: Ukazovatele | M84: Absolútne početnosti
B85: SR | C85: kraje | M85: SR | N85: kraje
C86: BA | D86: TT | E86: TN | F86: NR | G86: ZA | H86: BB | I86: PO | J86: KE | N86: BA | O86: TT | P86: TN | Q86: NR | R86: ZA | S86: BB | T86: PO | U86: KE
A87: deti | B87: 173170 | C87: 26795 | D87: 18444 | E87: 18123 | F87: 19356 | G87: 23343 | H87: 17919 | I87: 26784 | J87: 22406 | L87: deti | M87: 6609 | N87: 1100 | O87: 424 | P87: 355 | Q87: 680 | R87: 591 | S87: 555 | T87: 1531 | U87: 1373
A88: triedy | B88: 9039 | C88: 1363 | D88: 944 | E88: 925 | F88: 1037 | G88: 1196 | H88: 965 | I88: 1391 | J88: 1218 | L88: triedy | M88: 462 | N88: 80 | O88: 31 | P88: 21.5 | Q88: 48 | R88: 49 | S88: 37 | T88: 98 | U88: 98
A89: učitelia | B89: 17945 | C89: 2811 | D89: 1996 | E89: 1801 | F89: 2015 | G89: 2460 | H89: 1836 | I89: 2641 | J89: 2385 | L89: učitelia | M89: 653 | N89: 180 | O89: 153 | P89: -28 | Q89: 39 | R89: 172 | S89: -17 | T89: 82 | U89: 72
A90: školy | B90: 3102 | C90: 298 | D90: 311 | E90: 293 | F90: 424 | G90: 379 | H90: 381 | I90: 546 | J90: 470 | L90: školy | M90: 60 | N90: 14 | O90: 2 | P90: 2 | Q90: 5 | R90: 13 | S90: 1 | T90: 8 | U90: 15
J91: pokračovanie | U91: Zdroj: CVTI SR
A92: Ukazovatele | B92: Relatívne početnosti | L92: Legenda:
B93: SR | C93: kraje | L93: BA | M93: Bratislavský kraj
C94: BA | D94: TT | E94: TN | F94: NR | G94: ZA | H94: BB | I94: PO | J94: KE | L94: TT | M94: Trnavský kraj
A95: deti | B95: =SUM(C95:J95) -> 1 | C95: =C87/$B87 -> 0.1547323439 | D95: =D87/$B87 -> 0.1065080557 | E95: 0.1046543859 | F95: 0.1117745568 | G95: 0.1347981752 | H95: 0.1034763527 | I95: 0.1546688225 | J95: 0.1293873073 | L95: TN | M95: Trenčiansky kraj
A96: triedy | B96: =SUM(C96:J96) -> 1 | C96: =C88/$B88 -> 0.1507910167 | D96: 0.1044363315 | E96: 0.102334329 | F96: 0.1147250802 | G96: 0.1323155216 | H96: 0.1067595973 | I96: 0.1538887045 | J96: 0.1347494192 | L96: NR | M96: Nitriansky kraj
A97: učitelia | B97: =SUM(C97:J97) -> 1 | C97: =C89/$B89 -> 0.1566453051 | D97: 0.1112287545 | E97: 0.1003622179 | F97: 0.1122875453 | G97: 0.1370855391 | H97: 0.1023126219 | I97: 0.1471719142 | J97: 0.132906102 | L97: ZA | M97: Žilinský kraj
A98: školy | B98: =SUM(C98:J98) -> 1 | C98: 0.09606705351 | D98: =D90/$B90 -> 0.1002578981 | E98: 0.0944551902 | F98: 0.136686009 | G98: 0.1221792392 | H98: 0.1228239845 | I98: 0.1760154739 | J98: 0.1515151515 | L98: BB | M98: Banskobystrický kraj
J99: Zdroj: CVTI SR | L99: PO | M99: Prešovský kraj
L100: KE | M100: Košický kraj
J101: šk.r. 2021/2022
D115: TT | E115: 286 | F115: 31 | G115: 48 | H115: 4
D116: TN | E116: 72 | F116: 21.5 | G116: 41 | H116: 1
D117: NR | E117: -165 | F117: 7 | G117: 24 | H117: 5
D118: ZA | E118: 184 | F118: 27.5 | G118: 48 | H118: 3
D119: BB | E119: 6 | F119: 6 | G119: 18 | H119: 3
D120: PO | E120: 138 | F120: 15 | G120: 41 | H120: 4
D121: KE | E121: 137 | F121: 18 | G121: 46 | H121: 7
A137: b ) podľa zriaďovateľa
A139: Štruktúra ukazovateľov materských škôl podľa zriaďovateľa | H139: šk.r. 2021/2022 | L139: Medziročné rozdiely (2021-2020)
A140: Ukazovatele | B140: Absolútne početnosti | F140: Relatívne početnosti | L140: Ukazovatele | M140: Absolútne početnosti
B141: SR | F141: štátne | G141: súkromné | H141: cirkevné | M141: SR | N141: štátne | O141: súkromné | P141: cirkevné
C142: štátne | D142: súkromné | E142: cirkevné
A143: deti | B143: 173170 | C143: 157862 | D143: 9156 | E143: 6152 | F143: =C143/$B143 -> 0.9116013166 | G143: =D143/$B143 -> 0.05287289946 | H143: =E143/$B143 -> 0.03552578391 | L143: deti | M143: 6609 | N143: 4776 | O143: 1288 | P143: 545
A144: triedy | B144: 9039 | C144: 8144 | D144: 586 | E144: 309 | F144: =C144/$B144 -> 0.9009846222 | G144: =D144/$B144 -> 0.06483018033 | H144: 0.03418519748 | L144: triedy | M144: 462 | N144: 339 | O144: 89 | P144: 34
A145: učitelia | B145: 17945 | C145: 16168 | D145: 1184 | E145: 593 | F145: =C145/$B145 -> 0.900975202 | G145: 0.06597938144 | H145: 0.03304541655 | L145: učitelia | M145: 653 | N145: 505 | O145: 122 | P145: 26
A146: školy | B146: 3102 | C146: 2781 | D146: 212 | E146: 109 | F146: =C146/$B146 -> 0.8965183752 | G146: =D146/$B146 -> 0.06834300451 | H146: =E146/$B146 -> 0.03513862025 | L146: školy | M146: 60 | N146: 27 | O146: 23 | P146: 10
H147: Zdroj: CVTI SR | P147: Zdroj: CVTI SR
H150: šk.r. 2021/2022

Sheet ZŠ
J1: späť na schému
A2: Základné školy
A5: Základné školy (ZŠ) poskytujú žiakom základné poznatky, zručnosti a schopnosti v oblasti jazykovej, prírodovednej, spoločenskovednej,
A6: umeleckej, športovej, zdravotnej, dopravnej a ďalšie poznatky a zručnosti potrebné na jeho orientáciu v živote a v spoločnosti a na jeho
A7: ďalšiu výchovu a vzdelávanie. Výchova a vzdelávanie prebieha podľa vzdelávacích programov. Absolvovaním vzdelávacieho programu
A8: pre 1. stupeň žiaci získavajú primárne vzdelávanie. Ukončením vzdelávacieho programu pre 2. stupeň sa získava nižšie stredné vzdelanie.
A9: Na základnej škole sa plní povinná školská dochádzka, ktorá končí spravidla v prvom ročníku strednej školy.
A11: Základné školy sa členia na typy:
A12: a) základná škola so všetkými ročníkmi ("plnoorganizovaná ZŠ")
A13: b) základná škola, ktorá nemá všetky ročníky ("neplnoorganizovaná ZŠ")
A19: A. Dynamika vývoja základných škôl
A21: Vývoj ukazovateľov základných škôl od roku 2000
A22: Ukazovatele | B22: Rok
B23: 2000 | C23: 2001 | D23: 2002 | E23: 2003 | F23: 2004 | G23: 2005 | H23: 2006 | I23: 2007 | J23: 2008 | K23: 2009 | L23: 2010 | M23: 2011 | N23: 2012 | O23: 2013 | P23: 2014 | Q23: 2015 | R23: 2016 | S23: 2017 | T23: 2018 | U23: 2019 | V23: 2020 | W23: 2021
A24: novoprijatí | B24: 67829 | C24: 61265 | D24: 58955 | E24: 56693 | F24: 55310 | G24: 54166 | H24: 53074 | I24: 49927 | J24: 47531 | K24: 47945 | L24: 49563 | M24: 50145 | N24: 49643 | O24: 50383 | P24: 51319 | Q24: 53637 | R24: 55067 | S24: 54635 | T24: 54023 | U24: 55175 | V24: 56005 | W24: 58173
A25: žiaci | B25: 650966 | C25: 626645 | D25: 602360 | E25: 580791 | F25: 557328 | G25: 534147 | H25: 510510 | I25: 485018 | J25: 461715 | K25: 448371 | L25: 439675 | M25: 434477 | N25: 430139 | O25: 427377 | P25: 425731 | Q25: 427418 | R25: 433465 | S25: 440582 | T25: 447092 | U25: 454175 | V25: 461060 | W25: 468540
A26: odchádzajúci zo ZŠ | B26: 81934 | C26: 79762 | D26: 77784 | E26: 74151 | F26: 73401 | G26: 71422 | H26: 72387 | I26: 68534 | J26: 66755 | K26: 58901 | L26: 54723 | M26: 52302 | N26: 50830 | O26: 49696 | P26: 49957 | Q26: 49293 | R26: 46752 | S26: 45831 | T26: 44772 | U26: 45603 | V26: 46837 | W26: 46310
A27: triedy | B27: 29093 | C27: 28539 | D27: 27916 | E27: 27272 | F27: 26090 | G27: 25172 | H27: 24360 | I27: 23648 | J27: 23556 | K27: 23541 | L27: 23542 | M27: 23659 | N27: 23409 | O27: 23146 | P27: 23133 | Q27: 23234 | R27: 23369 | S27: 23604 | T27: 23787 | U27: 23980 | V27: 24250 | W27: 24625
A28: učitelia | B28: 42174 | C28: 41983 | D28: 41213 | E28: 40747 | F28: 38758 | G28: 37690 | H28: 36734 | I28: 35633 | J28: 35246 | K28: 35171 | L28: 35382 | M28: 35571 | N28: 35384 | O28: 35006 | P28: 34811 | Q28: 35051 | R28: 35067 | S28: 35239 | T28: 36048 | U28: 36189 | V28: 36595 | W28: 38040
A29: učebne | B29: 34691 | C29: 34772 | D29: 34922 | E29: 34784 | F29: 34201 | G29: 33846 | H29: 33390 | I29: 32728 | J29: 32601 | K29: 32456 | L29: 32833 | M29: 33055 | N29: 33214 | O29: 33294 | P29: 33361 | Q29: 33599 | R29: 33683 | S29: 33816 | T29: 34059 | U29: 34602 | V29: 34999 | W29: 35755
A30: školy | B30: 2447 | C30: 2406 | D30: 2396 | E30: 2387 | F30: 2342 | G30: 2304 | H30: 2283 | I30: 2254 | J30: 2237 | K30: 2224 | L30: 2216 | M30: 2202 | N30: 2177 | O30: 2159 | P30: 2133 | Q30: 2113 | R30: 2101 | S30: 2089 | T30: 2087 | U30: 2074 | V30: 2069 | W30: 2070
W31: Zdroj: CVTI SR
A93: B. Štruktúra ukazovateľov základných škôl v školskom roku 2021/2022
A96: a ) podľa kraja
A98: Štruktúra ukazovateľov základných škôl podľa krajov SR | J98: šk.r. 2021/2022 | L98: Medziročné rozdiely (2021-2020)
A99: Ukazovatele | B99: Absolútne početnosti | L99: Ukazovatele | M99: Absolútne početnosti
B100: SR | C100: kraje | M100: SR | N100: kraje
C101: BA | D101: TT | E101: TN | F101: NR | G101: ZA | H101: BB | I101: PO | J101: KE | N101: BA | O101: TT | P101: TN | Q101: NR | R101: ZA | S101: BB | T101: PO | U101: KE
A102: novoprijatí | B102: 58173 | C102: 8477 | D102: 5658 | E102: 5325 | F102: 6204 | G102: 6976 | H102: 6176 | I102: 9984 | J102: 9373 | L102: novoprijatí | M102: 2168 | N102: 442 | O102: -22 | P102: -92 | Q102: 156 | R102: 140 | S102: 216 | T102: 728 | U102: 600
A103: žiaci | B103: 468540 | C103: 63010 | D103: 46294 | E103: 45590 | F103: 52316 | G103: 60655 | H103: 50965 | I103: 78184 | J103: 71526 | L103: žiaci | M103: 7480 | N103: 3407 | O103: 560 | P103: 482 | Q103: 419 | R103: 541 | S103: 305 | T103: 878 | U103: 888
A104: odchádzajúci zo ZŠ | B104: 46310 | C104: 5462 | D104: 4681 | E104: 4671 | F104: 5435 | G104: 6189 | H104: 5216 | I104: 7556 | J104: 7100 | L104: odchádzajúci zo ZŠ | M104: -527 | N104: 58 | O104: 87 | P104: -10 | Q104: -51 | R104: -363 | S104: -67 | T104: -195 | U104: 14
A105: triedy | B105: 24625 | C105: 2923 | D105: 2456 | E105: 2361 | F105: 3028 | G105: 3201 | H105: 2760 | I105: 4158 | J105: 3738 | L105: triedy | M105: 375 | N105: 141 | O105: 29 | P105: 18 | Q105: 28 | R105: 12 | S105: 31 | T105: 56 | U105: 60
A106: učitelia | B106: 38040 | C106: 4401 | D106: 3738 | E106: 3655 | F106: 4679 | G106: 5057 | H106: 4281 | I106: 6541 | J106: 5688 | L106: učitelia | M106: 1445 | N106: 115 | O106: 53 | P106: 116 | Q106: 147 | R106: 186 | S106: 173 | T106: 354 | U106: 301
A107: učebne | B107: 35755 | C107: 3882 | D107: 3596 | E107: 3556 | F107: 4559 | G107: 4691 | H107: 4187 | I107: 6080 | J107: 5204 | L107: učebne | M107: 756 | N107: 108 | O107: -17 | P107: 24 | Q107: 84 | R107: 46 | S107: 36 | T107: 286 | U107: 189
A108: školy | B108: 2070 | C108: 169 | D108: 212 | E108: 192 | F108: 283 | G108: 256 | H108: 264 | I108: 390 | J108: 304 | L108: školy | M108: 1 | N108: 3 | O108: 0 | P108: -1 | Q108: 0 | R108: 2 | S108: -1 | T108: -3 | U108: 1
U109: Zdroj: CVTI SR
A110: Ukazovatele | B110: Relatívne početnosti
B111: SR | C111: kraje | L111: Legenda:
C112: BA | D112: TT | E112: TN | F112: NR | G112: ZA | H112: BB | I112: PO | J112: KE | L112: BA | M112: Bratislavský kraj
A113: novoprijatí | B113: =SUM(C113:J113) -> 1 | C113: =C102/$B102 -> 0.1457205233 | D113: 0.09726161621 | E113: 0.09153731112 | F113: 0.1066474137 | G113: 0.1199181751 | H113: 0.1061660908 | I113: 0.1716260121 | J113: 0.1611228577 | L113: TT | M113: Trnavský kraj
A114: žiaci | B114: =SUM(C114:J114) -> 1 | C114: 0.1344815811 | D114: 0.09880479788 | E114: 0.09730225808 | F114: 0.1116574892 | G114: 0.1294553293 | H114: 0.1087740641 | I114: 0.1668672899 | J114: 0.1526571904 | L114: TN | M114: Trenčiansky kraj
A115: odchádzajúci zo ZŠ | B115: 1 | C115: 0.1179442885 | D115: 0.1010796804 | E115: 0.1008637443 | F115: 0.1173612611 | G115: 0.1336428417 | H115: 0.1126322609 | I115: 0.1631613043 | J115: 0.1533146189 | L115: NR | M115: Nitriansky kraj
A116: triedy | B116: 1 | C116: 0.1187005076 | D116: 0.09973604061 | E116: 0.09587817259 | F116: 0.122964467 | G116: 0.1299898477 | H116: 0.1120812183 | I116: 0.1688527919 | J116: 0.1517969543 | L116: ZA | M116: Žilinský kraj
A117: učitelia | B117: 1 | C117: =C106/$B106 -> 0.1156940063 | D117: 0.09826498423 | E117: 0.09608307045 | F117: 0.123002103 | G117: 0.1329390116 | H117: 0.1125394322 | I117: 0.1719505783 | J117: 0.1495268139 | L117: BB | M117: Banskobystrický kraj
A118: učebne | B118: 1 | C118: 0.1085722277 | D118: 0.1005733464 | E118: 0.09945462173 | F118: 0.1275066424 | G118: 0.1311984338 | H118: 0.1171025031 | I118: 0.1700461474 | J118: 0.1455460775 | L118: PO | M118: Prešovský kraj
A119: školy | B119: 1 | C119: 0.08164251208 | D119: 0.1024154589 | E119: 0.09275362319 | F119: 0.1367149758 | G119: 0.1236714976 | H119: 0.1275362319 | I119: 0.1884057971 | J119: 0.1468599034 | L119: KE | M119: Košický kraj
J120: Zdroj: CVTI SR
J122: šk.r. 2021/2022
A150: b ) podľa zriaďovateľa
A152: Štruktúra ukazovateľov základných škôl podľa zriaďovateľa | H152: šk.r. 2021/2022 | L152: Medziročné rozdiely (2021-2020)
A153: Ukazovatele | B153: Absolútne početnosti | F153: Relatívne početnosti | L153: Ukazovatele | M153: Absolútne početnosti
B154: SR | C154: štátne | D154: súkromné | E154: cirkevné | F154: štátne | G154: súkromné | H154: cirkevné | M154: SR | N154: štátne | O154: súkromné | P154: cirkevné
A156: novoprijatí | B156: 58173 | C156: 52892 | D156: 1905 | E156: 3376 | F156: =C156/B156 -> 0.9092190535 | G156: =D156/B156 -> 0.03274715074 | H156: =E156/B156 -> 0.05803379575 | L156: novoprijatí | M156: 2168 | N156: 1612 | O156: 442 | P156: 114
A157: žiaci | B157: 468540 | C157: 428728 | D157: 11957 | E157: 27855 | F157: =C157/B157 -> 0.9150296666 | G157: 0.02551969949 | H157: 0.05945063388 | L157: žiaci | M157: 7480 | N157: 5058 | O157: 1944 | P157: 478
A158: odchádajúci zo ZŠ | B158: 46310 | C158: 42418 | D158: 983 | E158: 2909 | F158: 0.9159576765 | G158: 0.02122651695 | H158: 0.06281580652 | L158: odchádajúci zo ZŠ | M158: -527 | N158: -708 | O158: 124 | P158: 57
A159: triedy | B159: 24625 | C159: 22425 | D159: 736 | E159: 1464 | F159: 0.9106598985 | G159: 0.02988832487 | H159: 0.05945177665 | L159: triedy | M159: 375 | N159: 233 | O159: 105 | P159: 37
A160: učitelia | B160: 38040 | C160: 34587 | D160: 1202 | E160: 2251 | F160: 0.9092271293 | G160: 0.03159831756 | H160: 0.0591745531 | L160: učitelia | M160: 1445 | N160: 1457 | O160: 82 | P160: -94
A161: učebne | B161: 35755 | C161: 32613 | D161: 1067 | E161: 2075 | F161: 0.9121241784 | G161: 0.02984198014 | H161: 0.05803384142 | L161: učebne | M161: 756 | N161: 532 | O161: 149 | P161: 75
A162: školy | B162: 2070 | C162: 1874 | D162: 78 | E162: 118 | F162: 0.9053140097 | G162: 0.03768115942 | H162: 0.05700483092 | L162: školy | M162: 1 | N162: -12 | O162: 11 | P162: 2
H163: Zdroj: CVTI SR | P163: Zdroj: CVTI SR
H167: šk.r. 2021/2022

Sheet GYM
J1: späť na schému
A2: Gymnáziá
A5: Gymnázium (GYM) je všeobecnovzdelávacia, vnútorne diferencovaná stredná škola, ktorá pripravuje žiakov vo štvorročnom, v päťročnom
A6: alebo osemročnom vzdelávacom programe a poskytuje úplné stredné všeobecné vzdelanie. Vzdelávacie programy sú zamerané
A7: predovšetkým na prípravu pre štúdium na vysokých školách, môžu pripravovať aj na výkon niektorých činností vo verejnej správe,
A8: kultúre a športe.
A14: A. Dynamika vývoja gymnázií
A16: Vývoj ukazovateľov gymnázií od roku 2000
A17: Ukazovatele | B17: Rok
B18: 2000 | C18: 2001 | D18: 2002 | E18: 2003 | F18: 2004 | G18: 2005 | H18: 2006 | I18: 2007 | J18: 2008 | K18: 2009 | L18: 2010 | M18: 2011 | N18: 2012 | O18: 2013 | P18: 2014 | Q18: 2015 | R18: 2016 | S18: 2017 | T18: 2018 | U18: 2019 | V18: 2020 | W18: 2021
A19: novoprijatí | B19: 20337 | C19: 20208 | D19: 19689 | E19: 18603 | F19: 19145 | G19: 20156 | H19: 20433 | I19: 19771 | J19: 19592 | K19: 14713 | L19: 16306 | M19: 16348 | N19: 15916 | O19: 15730 | P19: 16437 | Q19: 16140 | R19: 15724 | S19: 15133 | T19: 14928 | U19: 14288 | V19: 14569 | W19: 15010
A20: žiaci | B20: 80615 | C20: 86239 | D20: 91661 | E20: 100057 | F20: 99738 | G20: 99758 | H20: 99931 | I20: 99915 | J20: 99821 | K20: 94019 | L20: 89336 | M20: 85071 | N20: 80346 | O20: 76711 | P20: 74891 | Q20: 73757 | R20: 72287 | S20: 73880 | T20: 72842 | U20: 71153 | V20: 70675 | W20: 72776
A21: absolventi | B21: 15754 | C21: 13995 | D21: 13427 | E21: 9331 | F21: 18592 | G21: 19284 | H21: 19522 | I21: 18875 | J21: 18483 | K21: 19191 | L21: 19692 | M21: 18796 | N21: 19098 | O21: 18260 | P21: 16813 | Q21: 16123 | R21: 15391 | S21: 12086 | T21: 14552 | U21: 14426 | V21: 14016 | W21: 13921
A22: triedy | B22: 2741 | C22: 2916 | D22: 3062 | E22: 3308 | F22: 3351 | G22: 3409 | H22: 3465 | I22: 3523 | J22: 3581 | K22: 3472 | L22: 3437 | M22: 3385 | N22: 3303 | O22: 3191 | P22: 3118 | Q22: 3064 | R22: 2986 | S22: 3064 | T22: 3035 | U22: 3006 | V22: 2995 | W22: 3144
A23: učitelia | B23: 7260 | C23: 7672 | D23: 7827 | E23: 8230 | F23: 8282 | G23: 8404 | H23: 8498 | I23: 8431 | J23: 8359 | K23: 8225 | L23: 8035 | M23: 7837 | N23: 7590 | O23: 7387 | P23: 6999 | Q23: 6933 | R23: 6793 | S23: 6839 | T23: 6899 | U23: 6897 | V23: 6842 | W23: 6790
A24: učebne | B24: 4071 | C24: 4361 | D24: 4557 | E24: 4787 | F24: 4939 | G24: 5091 | H24: 5264 | I24: 5318 | J24: 5426 | K24: 5447 | L24: 5481 | M24: 5470 | N24: 5406 | O24: 5466 | P24: 5371 | Q24: 5423 | R24: 5380 | S24: 5350 | T24: 5327 | U24: 5318 | V24: 5296 | W24: 5581
A25: školy | B25: 212 | C25: 217 | D25: 220 | E25: 223 | F25: 234 | G25: 238 | H25: 246 | I25: 252 | J25: 251 | K25: 249 | L25: 250 | M25: 247 | N25: 244 | O25: 246 | P25: 242 | Q25: 244 | R25: 239 | S25: 236 | T25: 236 | U25: 235 | V25: 232 | W25: 233
W26: Zdroj: CVTI SR
A85: B. Štruktúra ukazovateľov gymnázií v školskom roku 2021/2022
A88: a ) podľa kraja
A90: Štruktúra ukazovateľov gymnázií podľa krajov SR | J90: šk.r. 2021/2022 | L90: Medziročné rozdiely (2021-2020)
A91: Ukazovatele | B91: Absolútne početnosti | L91: Ukazovatele | M91: Absolútne početnosti
B92: SR | C92: kraje | M92: SR | N92: kraje
C93: BA | D93: TT | E93: TN | F93: NR | G93: ZA | H93: BB | I93: PO | J93: KE | N93: BA | O93: TT | P93: TN | Q93: NR | R93: ZA | S93: BB | T93: PO | U93: KE
A94: novoprijatí | B94: 15010 | C94: 2868 | D94: 1308 | E94: 1288 | F94: 1532 | G94: 1941 | H94: 1517 | I94: 2243 | J94: 2313 | L94: novoprijatí | M94: 441 | N94: -40 | O94: 82 | P94: 7 | Q94: 141 | R94: 23 | S94: 6 | T94: 77 | U94: 145
A95: žiaci | B95: 72776 | C95: 14745 | D95: 6349 | E95: 6193 | F95: 7456 | G95: 9735 | H95: 7103 | I95: 10383 | J95: 10812 | L95: žiaci | M95: 2101 | N95: 106 | O95: 305 | P95: 43 | Q95: 980 | R95: 141 | S95: 206 | T95: -64 | U95: 384
A96: absolventi | B96: 13921 | C96: 2339 | D96: 1209 | E96: 1191 | F96: 1511 | G96: 1937 | H96: 1328 | I96: 2283 | J96: 2123 | L96: absolventi | M96: -95 | N96: -70 | O96: 52 | P96: -6 | Q96: 91 | R96: -64 | S96: -120 | T96: -34 | U96: 56
A97: triedy | B97: 3144 | C97: 610 | D97: 302 | E97: 261 | F97: 307 | G97: 414 | H97: 320 | I97: 445 | J97: 485 | L97: triedy | M97: 149 | N97: 6 | O97: 27 | P97: 5 | Q97: 41 | R97: 12 | S97: 17 | T97: 8 | U97: 33
A98: učitelia | B98: 6790 | C98: 1436 | D98: 574 | E98: 566 | F98: 685 | G98: 891 | H98: 677 | I98: 964 | J98: 997 | L98: učitelia | M98: -52 | N98: -82 | O98: -25 | P98: -4 | Q98: 92 | R98: 9 | S98: -3 | T98: -46 | U98: 7
A99: učebne | B99: 5581 | C99: 1057 | D99: 511 | E99: 513 | F99: 550 | G99: 780 | H99: 614 | I99: 748 | J99: 808 | L99: učebne | M99: 285 | N99: 1 | O99: 11 | P99: 45 | Q99: 85 | R99: 36 | S99: 39 | T99: 0 | U99: 68
A100: školy | B100: 233 | C100: 44 | D100: 22 | E100: 17 | F100: 22 | G100: 29 | H100: 27 | I100: 38 | J100: 34 | L100: školy | M100: 1 | N100: 1 | O100: 0 | P100: 0 | Q100: 0 | R100: 0 | S100: 0 | T100: 0 | U100: 0
J101: pokračovanie | U101: Zdroj: CVTI SR
A102: Ukazovatele | B102: Relatívne početnosti
B103: SR | C103: kraje | L103: Legenda:
C104: BA | D104: TT | E104: TN | F104: NR | G104: ZA | H104: BB | I104: PO | J104: KE | L104: BA | M104: Bratislavský kraj
A105: novoprijatí | B105: =SUM(C105:J105) -> 1 | C105: =C94/$B94 -> 0.1910726183 | D105: =D94/$B94 -> 0.0871419054 | E105: 0.08580946036 | F105: 0.1020652898 | G105: 0.1293137908 | H105: 0.101065956 | I105: 0.1494337109 | J105: 0.1540972685 | L105: TT | M105: Trnavský kraj
A106: žiaci | B106: 1 | C106: =C95/$B95 -> 0.2026080026 | D106: 0.087240299 | E106: 0.08509673519 | F106: 0.1024513576 | G106: 0.1337666264 | H106: 0.09760085743 | I106: 0.1426706607 | J106: 0.1485654611 | L106: TN | M106: Trenčiansky kraj
A107: absolventi | B107: 1 | C107: 0.1680195388 | D107: 0.08684720925 | E107: 0.08555419869 | F107: 0.1085410531 | G107: 0.139142303 | H107: 0.09539544573 | I107: 0.1639968393 | J107: 0.1525034121 | L107: NR | M107: Nitriansky kraj
A108: triedy | B108: 1 | C108: 0.1940203562 | D108: 0.09605597964 | E108: 0.08301526718 | F108: 0.09764631043 | G108: 0.1316793893 | H108: 0.1017811705 | I108: 0.1415394402 | J108: 0.1542620865 | L108: ZA | M108: Žilinský kraj
A109: učitelia | B109: 1 | C109: 0.2114874816 | D109: 0.08453608247 | E109: 0.08335787923 | F109: 0.1008836524 | G109: 0.1312223859 | H109: 0.09970544919 | I109: 0.1419734904 | J109: 0.1468335788 | L109: BB | M109: Banskobystrický kraj
A110: učebne | B110: 1 | C110: 0.189392582 | D110: 0.09156065221 | E110: 0.09191901093 | F110: 0.0985486472 | G110: 0.1397598997 | H110: 0.1100161261 | I110: 0.1340261602 | J110: 0.1447769217 | L110: PO | M110: Prešovský kraj
A111: školy | B111: 1 | C111: 0.1888412017 | D111: 0.09442060086 | E111: 0.07296137339 | F111: 0.09442060086 | G111: 0.1244635193 | H111: 0.1158798283 | I111: 0.1630901288 | J111: =J100/$B100 -> 0.1459227468 | L111: KE | M111: Košický kraj
J112: Zdroj: CVTI SR
J115: šk.r. 2021/2022
A148: b ) podľa zriaďovateľa
A150: Štruktúra ukazovateľov gymnázií podľa zriaďovateľa | H150: šk.r. 2021/2022 | L150: Medziročné rozdiely (2021-2020)
A151: Ukazovatele | B151: Absolútne početnosti | F151: Relatívne početnosti | L151: Ukazovatele | M151: Absolútne početnosti
B152: SR | C152: štátne | D152: súkromné | E152: cirkevné | F152: štátne | G152: súkromné | H152: cirkevné | M152: SR | N152: štátne | O152: súkromné | P152: cirkevné
A154: novoprijatí | B154: 15010 | C154: 11466 | D154: 1240 | E154: 2304 | F154: =C154/$B154 -> 0.7638907395 | G154: =D154/$B154 -> 0.08261159227 | H154: 0.1534976682 | L154: novoprijatí | M154: 441 | N154: 395 | O154: 132 | P154: -86
A155: žiaci | B155: 72776 | C155: 55471 | D155: 5226 | E155: 12079 | F155: =C155/$B155 -> 0.7622155656 | G155: 0.07180938771 | H155: 0.1659750467 | L155: žiaci | M155: 2101 | N155: 1886 | O155: 448 | P155: -233
A156: absolventi | B156: 13921 | C156: 10821 | D156: 822 | E156: 2278 | F156: 0.7773148481 | G156: 0.05904748222 | H156: 0.1636376697 | L156: absolventi | M156: -95 | N156: -47 | O156: 43 | P156: -91
A157: triedy | B157: 3144 | C157: 2298 | D157: 310 | E157: 536 | F157: 0.7309160305 | G157: 0.09860050891 | H157: 0.1704834606 | L157: triedy | M157: 149 | N157: 116 | O157: 42 | P157: -9
A158: učitelia | B158: 6790 | C158: 4818 | D158: 745 | E158: 1227 | F158: 0.7095729013 | G158: 0.1097201767 | H158: 0.1807069219 | L158: učitelia | M158: -52 | N158: 56 | O158: -3 | P158: -105
A159: učebne | B159: 5581 | C159: 4123 | D159: 563 | E159: 895 | F159: 0.7387564953 | G159: 0.1008779789 | H159: 0.1603655259 | L159: učebne | M159: 285 | N159: 236 | O159: 65 | P159: -16
A160: školy | B160: 233 | C160: 144 | D160: 39 | E160: 50 | F160: 0.6180257511 | G160: 0.1673819742 | H160: 0.2145922747 | L160: školy | M160: 1 | N160: 0 | O160: 2 | P160: -1
H161: Zdroj: CVTI SR | P161: Zdroj: CVTI SR
H165: šk.r. 2021/2022

Sheet SOŠ
J1: späť na schému
A2: Stredné odborné školy
A5: Stredná odborná škola (SOŠ) je vnútorne diferencovaná stredná škola, ktorá pripravuje žiakov najmenej v dvojročnom a najviac v päťročnom vzdelávacom
A6: programe príslušného odboru vzdelávania. Poskytuje nižšie stredné odborné vzdelanie, stredné odborné vzdelanie a úplné stredné odborné vzdelanie,
A7: v špecializačnom a vyššom odbornom štúdiu aj vyššie odborné vzdelanie. Vzdelávacie programy sú zamerané predovšetkým na výkon povolaní
A8: a odborných činností v národnom hospodárstve, v zdravotníctve, verejnej správe, kultúre, umení a v ostatných oblastiach a môžu pripravovať
A9: aj na ďalšie štúdium. Stredné odborné školy sa delia na typy podľa odborného zamerania.
A15: A. Dynamika vývoja stredných odborných škôl
A17: Vývoj ukazovateľov stredných odborných škôl od roku 2000
A18: Ukazovatele | B18: Rok
B19: 2000 | C19: 2001 | D19: 2002 | E19: 2003 | F19: 2004 | G19: 2005 | H19: 2006 | I19: 2007 | J19: 2008 | K19: 2009 | L19: 2010 | M19: 2011 | N19: 2012 | O19: 2013 | P19: 2014 | Q19: 2015 | R19: 2016 | S19: 2017 | T19: 2018 | U19: 2019 | V19: 2020 | W19: 2021
A20: novoprijatí | B20: 76512 | C20: 73732 | D20: 67259 | E20: 68949 | F20: 67504 | G20: 64035 | H20: 63594 | I20: 59452 | J20: 55910 | K20: 53791 | L20: 48392 | M20: 45795 | N20: 44250 | O20: 42235 | P20: 41239 | Q20: 39963 | R20: 38168 | S20: 36096 | T20: 35928 | U20: 35931 | V20: 35957 | W20: 40803
A21: žiaci | B21: 202621 | C21: 206356 | D21: 214216 | E21: 224731 | F21: 223957 | G21: 216091 | H21: 210573 | I21: 201369 | J21: 193898 | K21: 189265 | L21: 179790 | M21: 168974 | N21: 157956 | O21: 148748 | P21: 142799 | Q21: 138360 | R21: 134154 | S21: 129642 | T21: 125075 | U21: 122211 | V21: 122656 | W21: 121470
A22: absolventi | B22: 66538 | C22: 61357 | D22: 49458 | E22: 48259 | F22: 58402 | G22: 59478 | H22: 57573 | I22: 56081 | J22: 50979 | K22: 48368 | L22: 48904 | M22: 47357 | N22: 45912 | O22: 42285 | P22: 37968 | Q22: 34693 | R22: 33576 | S22: 31448 | T22: 31333 | U22: 30455 | V22: 30555 | W22: 30098
A23: triedy | B23: 8046 | C23: 8120 | D23: 8314 | E23: 8587 | F23: 8550 | G23: 8310 | H23: 8146 | I23: 7864 | J23: 7741 | K23: 7757 | L23: 7629 | M23: 7408 | N23: 7075 | O23: 6742 | P23: 6456 | Q23: 6216 | R23: 5968 | S23: 5768 | T23: 5591 | U23: 5560 | V23: 5584 | W23: 6244
A24: učitelia | B24: 18926 | C24: 19009 | D24: 18790 | E24: 18711 | F24: 18119 | G24: 17714 | H24: 17370 | I24: 16725 | J24: 16670 | K24: 16550 | L24: 16283 | M24: 15759 | N24: 15053 | O24: 14464 | P24: 13915 | Q24: 13540 | R24: 13220 | S24: 12839 | T24: 12622 | U24: 12609 | V24: 12356 | W24: 12436
A25: učebne | B25: 11524 | C25: 11713 | D25: 11762 | E25: 11792 | F25: 11756 | G25: 11901 | H25: 11904 | I25: 11842 | J25: 11868 | K25: 11859 | L25: 11992 | M25: 11964 | N25: 11757 | O25: 11687 | P25: 11575 | Q25: 11503 | R25: 11400 | S25: 11146 | T25: 11119 | U25: 11042 | V25: 10936 | W25: 11192
A26: školy | B26: 732 | C26: 736 | D26: 661 | E26: 627 | F26: 594 | G26: 570 | H26: 576 | I26: 547 | J26: 499 | K26: 487 | L26: 486 | M26: 470 | N26: 464 | O26: 457 | P26: 448 | Q26: 450 | R26: 443 | S26: 437 | T26: 433 | U26: 430 | V26: 430 | W26: 416
A27: Poznámka: SOŠ zahrňajú aj školy v pôsobnosti Ministerstva zdravorníctva SR: | W27: Zdroj: CVTI SR
A87: B. Štruktúra ukazovateľov stredných odborných škôl v školskom roku 2021/2022
A90: a ) podľa kraja
A92: Štruktúra ukazovateľov stredných odborných škôl podľa krajov SR | J92: šk.r.2021/2022 | L92: Medziročné rozdiely (2021-2020)
A93: Ukazovatele | B93: Absolútne početnosti | L93: Ukazovatele | M93: Absolútne početnosti
B94: SR | C94: kraje | M94: SR | N94: kraje
C95: BA | D95: TT | E95: TN | F95: NR | G95: ZA | H95: BB | I95: PO | J95: KE | N95: BA | O95: TT | P95: TN | Q95: NR | R95: ZA | S95: BB | T95: PO | U95: KE
A96: novoprijatí | B96: 40803 | C96: 5216 | D96: 4005 | E96: 3596 | F96: 5077 | G96: 5406 | H96: 4638 | I96: 6286 | J96: 6579 | L96: novoprijatí | M96: 4846 | N96: 1196 | O96: 465 | P96: 326 | Q96: 389 | R96: 428 | S96: 480 | T96: 639 | U96: 923
A97: žiaci | B97: 121470 | C97: 14400 | D97: 12105 | E97: 11847 | F97: 15120 | G97: 17613 | H97: 14000 | I97: 18517 | J97: 17868 | L97: žiaci | M97: -1186 | N97: 1087 | O97: -152 | P97: -61 | Q97: -968 | R97: -326 | S97: -85 | T97: -235 | U97: -446
A98: absolventi | B98: 30098 | C98: 2912 | D98: 2966 | E98: 3072 | F98: 3819 | G98: 4537 | H98: 3314 | I98: 5036 | J98: 4442 | L98: absolventi | M98: -457 | N98: -8 | O98: -133 | P98: -43 | Q98: -335 | R98: -69 | S98: -111 | T98: 158 | U98: 84
A99: triedy | B99: 6244 | C99: 732 | D99: 702 | E99: 574 | F99: 791 | G99: 878 | H99: 709 | I99: 908 | J99: 950 | L99: triedy | M99: 660 | N99: 138 | O99: 102 | P99: 44 | Q99: 49 | R99: 41 | S99: 69 | T99: 108 | U99: 109
A100: učitelia | B100: 12436 | C100: 1710 | D100: 1260 | E100: 1228 | F100: 1538 | G100: 1798 | H100: 1355 | I100: 1721 | J100: 1826 | L100: učitelia | M100: 80 | N100: 84 | O100: 10 | P100: 51 | Q100: -64 | R100: 12 | S100: -27 | T100: -38 | U100: 52
A101: učebne | B101: 11192 | C101: 1356 | D101: 1127 | E101: 1154 | F101: 1424 | G101: 1514 | H101: 1381 | I101: 1728 | J101: 1508 | L101: učebne | M101: 256 | N101: 82 | O101: -56 | P101: 111 | Q101: -72 | R101: 2 | S101: 33 | T101: 37 | U101: 119
A102: školy | B102: 416 | C102: 50 | D102: 41 | E102: 35 | F102: 57 | G102: 54 | H102: 57 | I102: 63 | J102: 59 | L102: školy | M102: -14 | N102: 0 | O102: -5 | P102: 0 | Q102: -1 | R102: -1 | S102: -1 | T102: -4 | U102: -2
J103: pokračovanie | U103: Zdroj: CVTI SR
A104: Ukazovatele | B104: Relatívne početnosti
B105: SR | C105: kraje | L105: Legenda:
C106: BA | D106: TT | E106: TN | F106: NR | G106: ZA | H106: BB | I106: PO | J106: KE | L106: BA | M106: Bratislavský kraj
A107: novoprijatí | B107: =SUM(C107:J107) -> 1 | C107: =C96/$B96 -> 0.1278337377 | D107: =D96/$B96 -> 0.09815454746 | E107: 0.0881307747 | F107: 0.1244271255 | G107: 0.1324902581 | H107: 0.1136681126 | I107: 0.1540572997 | J107: 0.1612381443 | L107: TT | M107: Trnavský kraj
A108: žiaci | B108: 1 | C108: =C97/$B97 -> 0.1185477896 | D108: 0.09965423561 | E108: 0.09753025438 | F108: 0.1244751791 | G108: 0.1449987651 | H108: 0.1152547954 | I108: 0.1524409319 | J108: 0.1470980489 | L108: TN | M108: Trenčiansky kraj
A109: absolventi | B109: 1 | C109: 0.09675061466 | D109: 0.0985447538 | E109: 0.1020665825 | F109: 0.1268855073 | G109: 0.150740913 | H109: 0.1101069839 | I109: 0.1673200877 | J109: 0.1475845571 | L109: NR | M109: Nitriansky kraj
A110: triedy | B110: 1 | C110: 0.1172325432 | D110: 0.1124279308 | E110: 0.09192825112 | F110: 0.1266816143 | G110: 0.1406149904 | H110: 0.113549007 | I110: 0.1454196028 | J110: 0.1521460602 | L110: ZA | M110: Žilinský kraj
A111: učitelia | B111: 1 | C111: 0.1375040206 | D111: 0.101318752 | E111: 0.09874557736 | F111: 0.1236732068 | G111: 0.1445802509 | H111: 0.1089578643 | I111: 0.1383885494 | J111: 0.1468317787 | L111: BB | M111: Banskobystrický kraj
A112: učebne | B112: 1 | C112: 0.12115797 | D112: 0.1006969264 | E112: 0.1031093638 | F112: 0.1272337384 | G112: 0.1352751966 | H112: 0.1233917084 | I112: 0.1543959971 | J112: 0.1347390994 | L112: PO | M112: Prešovský kraj
A113: školy | B113: 1 | C113: 0.1201923077 | D113: 0.09855769231 | E113: 0.08413461538 | F113: 0.1370192308 | G113: 0.1298076923 | H113: 0.1370192308 | I113: =I102/$B102 -> 0.1514423077 | J113: =J102/$B102 -> 0.1418269231 | L113: KE | M113: Košický kraj
J114: Zdroj: CVTI SR
J118: šk.r.2021/2022
A145: b ) podľa zriaďovateľa
A147: Štruktúra ukazovateľov stredných odborných škôl podľa zriaďovateľa | H147: šk.r.2021/2022 | L147: Medziročné rozdiely (2021-2020)
A148: Ukazovatele | B148: Absolútne početnosti | F148: Relatívne početnosti | L148: Ukazovatele | M148: Absolútne početnosti
B149: SR | C149: štátne | D149: súkromné | E149: cirkevné | F149: štátne | G149: súkromné | H149: cirkevné | M149: SR | N149: štátne | O149: súkromné | P149: cirkevné
A151: novoprijatí | B151: 40803 | C151: 33425 | D151: 5555 | E151: 1823 | F151: =C151/$B151 -> 0.8191799623 | G151: =D151/$B151 -> 0.1361419503 | H151: 0.0446780874 | L151: novoprijatí | M151: 4846 | N151: 2827 | O151: 1410 | P151: 609
A152: žiaci | B152: 121470 | C152: 103686 | D152: 13880 | E152: 3904 | F152: =C152/$B152 -> 0.8535934799 | G152: 0.1142668972 | H152: 0.03213962295 | L152: žiaci | M152: -1186 | N152: -1559 | O152: 265 | P152: 108
A153: absolventi | B153: 30098 | C153: 26014 | D153: 3147 | E153: 937 | F153: 0.8643099209 | G153: 0.1045584424 | H153: 0.03113163665 | L153: absolventi | M153: -457 | N153: -492 | O153: -55 | P153: 90
A154: triedy | B154: 6244 | C154: 5077 | D154: 931 | E154: 236 | F154: 0.8131005766 | G154: 0.149103139 | H154: 0.03779628443 | L154: triedy | M154: 660 | N154: 358 | O154: 241 | P154: 61
A155: učitelia | B155: 12436 | C155: 10228 | D155: 1658 | E155: 550 | F155: 0.8224509489 | G155: 0.1333226118 | H155: 0.04422643937 | L155: učitelia | M155: 80 | N155: 19 | O155: 34 | P155: 27
A156: učebne | B156: 11192 | C156: 9593 | D156: 1275 | E156: 324 | F156: 0.8571300929 | G156: 0.1139206576 | H156: 0.02894924946 | L156: učebne | M156: 256 | N156: 264 | O156: -36 | P156: 28
A157: školy | B157: 416 | C157: 323 | D157: 74 | E157: 19 | F157: 0.7764423077 | G157: 0.1778846154 | H157: 0.04567307692 | L157: školy | M157: -14 | N157: -12 | O157: -2 | P157: 0
H158: Zdroj: CVTI SR | P158: Zdroj: CVTI SR
H163: šk.r.2021/2022

Sheet KON
J1: späť na schému
A2: Konzervatória
A5: Konzervatórium (KON) poskytuje komplexné umelecké a umelecko-pedagogické vzdelanie. Pripravuje žiakov na profesionálne umelecké
A6: uplatnenie a na vyučovanie umeleckých a odborných predmetov. Výchova a vzdelávanie sa uskutočňuje podľa šesťročného vzdelávacieho
A7: programu, v ktorom žiak ukončením štvrtého ročníka vykoná maturitnú skúšku a po ukončení šiesteho ročníka vykoná absolventskú skúšku.
A8: V odbore tanec sa štúdium uskutočňuje podľa osemročného vzdelávacieho programu.
A14: A. Dynamika vývoja konzervatórií
A16: Vývoj ukazovateľov konzervatórií od roku 2000
A17: Ukazovatele | B17: Rok
B18: 2000 | C18: 2001 | D18: 2002 | E18: 2003 | F18: 2004 | G18: 2005 | H18: 2006 | I18: 2007 | J18: 2008 | K18: 2009 | L18: 2010 | M18: 2011 | N18: 2012 | O18: 2013 | P18: 2014 | Q18: 2015 | R18: 2016 | S18: 2017 | T18: 2018 | U18: 2019 | V18: 2020 | W18: 2021
A19: novoprijatí | B19: 336 | C19: 355 | D19: 370 | E19: 383 | F19: 418 | G19: 433 | H19: 420 | I19: 475 | J19: 462 | K19: 447 | L19: 501 | M19: 686 | N19: 643 | O19: 545 | P19: 562 | Q19: 602 | R19: 546 | S19: 586 | T19: 612 | U19: 608 | V19: 571 | W19: 585
A20: žiaci | B20: 1579 | C20: 1623 | D20: 1649 | E20: 1728 | F20: 1839 | G20: 1961 | H20: 2021 | I20: 2108 | J20: 2182 | K20: 2275 | L20: 2312 | M20: 2859 | N20: 2985 | O20: 2940 | P20: 2956 | Q20: 2977 | R20: 2975 | S20: 3048 | T20: 3034 | U20: 3079 | V20: 3149 | W20: 3197
A21: absolventi | B21: 478 | C21: 429 | D21: 405 | E21: 402 | F21: 403 | G21: 424 | H21: 432 | I21: 495 | J21: 454 | K21: 453 | L21: 450 | M21: 655 | N21: 567 | O21: 619 | P21: 640 | Q21: 682 | R21: 682 | S21: 623 | T21: 681 | U21: 684 | V21: 719 | W21: 970
A22: triedy | B22: 79 | C22: 74 | D22: 76 | E22: 77 | F22: 86 | G22: 93 | H22: 97 | I22: 103 | J22: 110 | K22: 120 | L22: 123 | M22: 155 | N22: 166 | O22: 163 | P22: 166 | Q22: 160 | R22: 163 | S22: 163 | T22: 160 | U22: 161 | V22: 165 | W22: 164
A23: učitelia | B23: 683 | C23: 643 | D23: 693 | E23: 701 | F23: 719 | G23: 759 | H23: 792 | I23: 806 | J23: 849 | K23: 911 | L23: 860 | M23: 1011 | N23: 1035 | O23: 1070 | P23: 1071 | Q23: 1039 | R23: 1064 | S23: 1110 | T23: 1086 | U23: 1066 | V23: 1069 | W23: 902
A24: učebne | B24: 340 | C24: 346 | D24: 340 | E24: 349 | F24: 369 | G24: 346 | H24: 372 | I24: 391 | J24: 414 | K24: 444 | L24: 431 | M24: 487 | N24: 503 | O24: 509 | P24: 531 | Q24: 561 | R24: 566 | S24: 575 | T24: 587 | U24: 583 | V24: 616 | W24: 616
A25: školy | B25: 8 | C25: 8 | D25: 8 | E25: 8 | F25: 10 | G25: 11 | H25: 12 | I25: 13 | J25: 13 | K25: 14 | L25: 14 | M25: 16 | N25: 16 | O25: 15 | P25: 15 | Q25: 17 | R25: 17 | S25: 17 | T25: 17 | U25: 17 | V25: 17 | W25: 17
W26: Zdroj: CVTI SR
A86: B. Štruktúra ukazovateľov konzervatórií v školskom roku 2021/2022
A89: a ) podľa kraja
A91: Štruktúra ukazovateľov konzervatórií podľa krajov SR | J91: šk.r. 2021/2022 | L91: Medziročné rozdiely (2021-2020)
A92: Ukazovatele | B92: Absolútne početnosti | L92: Ukazovatele | M92: Absolútne početnosti
B93: SR | C93: kraje | M93: SR | N93: kraje
C94: BA | D94: TT | E94: TN | F94: NR | G94: ZA | H94: BB | I94: PO | J94: KE | N94: BA | O94: TT | P94: TN | Q94: NR | R94: ZA | S94: BB | T94: PO | U94: KE
A95: novoprijatí | B95: 585 | C95: 164 | D95: 13 | F95: 94 | G95: 43 | H95: 98 | I95: 31 | J95: 142 | L95: novoprijatí | M95: 14 | N95: -8 | O95: 6 | P95: 0 | Q95: 16 | R95: -2 | S95: 16 | T95: 0 | U95: -14
A96: žiaci | B96: 3197 | C96: 1012 | D96: 59 | E96: 0 | F96: 446 | G96: 264 | H96: 424 | I96: 169 | J96: 823 | L96: žiaci | M96: 48 | N96: 50 | O96: 3 | P96: 0 | Q96: 0 | R96: -8 | S96: 14 | T96: 2 | U96: -13
A97: absolventi | B97: 970 | C97: 265 | D97: 5 | E97: 0 | F97: 176 | G97: 77 | H97: 130 | I97: 71 | J97: 246 | L97: absolventi | M97: 251 | N97: 87 | O97: 0 | P97: 0 | Q97: 71 | R97: 6 | S97: 49 | T97: 37 | U97: 1
A98: triedy | B98: 164 | C98: 45 | D98: 8 | E98: 0 | F98: 23 | G98: 17 | H98: 21 | I98: 8 | J98: 42 | L98: triedy | M98: -1 | N98: -2 | O98: 0 | P98: 0 | Q98: 0 | R98: 0 | S98: 0 | T98: 1 | U98: 0
A99: učitelia | B99: 902 | C99: 261 | D99: 19 | E99: 0 | F99: 99 | G99: 98 | H99: 135 | I99: 43 | J99: 247 | L99: učitelia | M99: -167 | N99: -47 | O99: -7 | P99: 0 | Q99: -52 | R99: -15 | S99: -9 | T99: -16 | U99: -21
A100: učebne | B100: 616 | C100: 195 | D100: 11 | E100: 0 | F100: 71 | G100: 78 | H100: 93 | I100: 23 | J100: 145 | L100: učebne | M100: 0 | N100: 0 | O100: 0 | P100: 0 | Q100: -2 | R100: -2 | S100: 1 | T100: 1 | U100: 2
A101: školy | B101: 17 | C101: 4 | D101: 1 | E101: 0 | F101: 2 | G101: 2 | H101: 3 | I101: 1 | J101: 4 | L101: školy | M101: 0 | N101: 0 | O101: 0 | P101: 0 | Q101: 0 | R101: 0 | S101: 0 | T101: 0 | U101: 0
J102: pokračovanie | U102: Zdroj: CVTI SR
A103: Ukazovatele | B103: Relatívne početnosti
B104: SR | C104: kraje | L104: Legenda:
C105: BA | D105: TT | E105: TN | F105: NR | G105: ZA | H105: BB | I105: PO | J105: KE | L105: BA | M105: Bratislavský kraj
A106: novoprijatí | B106: =SUM(C106:J106) -> 1 | C106: =C95/$B95 -> 0.2803418803 | D106: =D95/$B95 -> 0.02222222222 | E106: 0 | F106: 0.1606837607 | G106: 0.0735042735 | H106: 0.1675213675 | I106: 0.05299145299 | J106: 0.2427350427 | L106: TT | M106: Trnavský kraj
A107: žiaci | B107: =SUM(C107:J107) -> 1 | C107: =C96/$B96 -> 0.3165467626 | D107: =D96/$B96 -> 0.01845480138 | E107: =E96/$B96 -> 0 | F107: 0.1395057867 | G107: 0.08257741633 | H107: 0.1326243353 | I107: 0.05286205818 | J107: 0.2574288395 | L107: TN | M107: Trenčiansky kraj
A108: absolventi | B108: 1 | C108: =C97/$B97 -> 0.2731958763 | D108: =D97/$B97 -> 0.005154639175 | E108: =E97/$B97 -> 0 | F108: =F97/$B97 -> 0.181443299 | G108: =G97/$B97 -> 0.0793814433 | H108: =H97/$B97 -> 0.1340206186 | I108: =I97/$B97 -> 0.07319587629 | J108: =J97/$B97 -> 0.2536082474 | L108: NR | M108: Nitriansky kraj
A109: triedy | B109: 1 | C109: 0.2743902439 | D109: 0.0487804878 | E109: 0 | F109: 0.1402439024 | G109: 0.1036585366 | H109: 0.1280487805 | I109: 0.0487804878 | J109: 0.256097561 | L109: ZA | M109: Žilinský kraj
A110: učitelia | B110: 1 | C110: 0.2893569845 | D110: 0.02106430155 | E110: 0 | F110: 0.1097560976 | G110: 0.1086474501 | H110: 0.1496674058 | I110: 0.04767184035 | J110: 0.2738359202 | L110: BB | M110: Banskobystrický kraj
A111: učebne | B111: 1 | C111: 0.3165584416 | D111: 0.01785714286 | E111: 0 | F111: 0.1152597403 | G111: 0.1266233766 | H111: 0.150974026 | I111: 0.03733766234 | J111: 0.2353896104 | L111: PO | M111: Prešovský kraj
A112: školy | B112: 1 | C112: 0.2352941176 | D112: 0.05882352941 | E112: 0 | F112: 0.1176470588 | G112: 0.1176470588 | H112: 0.1764705882 | I112: =I101/$B101 -> 0.05882352941 | J112: =J101/$B101 -> 0.2352941176 | L112: KE | M112: Košický kraj
J113: Zdroj: CVTI SR
J117: šk.r. 2021/2022
A147: b ) podľa zriaďovateľa
A149: Štruktúra ukazovateľov konzervatórií podľa zriaďovateľa | H149: šk.r. 2021/2022 | L149: Medziročné rozdiely (2021-2020)
A150: Ukazovatele | B150: Absolútne početnosti | F150: Relatívne početnosti | L150: Ukazovatele | M150: Absolútne početnosti
B151: SR | C151: štátne | D151: súkromné | E151: cirkevné | F151: štátne | G151: súkromné | H151: cirkevné | M151: SR | N151: štátne | O151: súkromné | P151: cirkevné
A153: novoprijatí | B153: 585 | C153: 323 | D153: 226 | E153: 36 | F153: =C153/$B153 -> 0.5521367521 | G153: =D153/$B153 -> 0.3863247863 | H153: 0.06153846154 | L153: novoprijatí | M153: 14 | N153: 12 | O153: 0 | P153: 2
A154: žiaci | B154: 3197 | C154: 1831 | D154: 1171 | E154: 195 | F154: =C154/$B154 -> 0.5727244292 | G154: 0.3662808883 | H154: 0.06099468251 | L154: žiaci | M154: 48 | N154: 4 | O154: 18 | P154: 26
A155: absolventi | B155: 970 | C155: 530 | D155: 382 | E155: 58 | F155: 0.5463917526 | G155: 0.393814433 | H155: 0.05979381443 | L155: absolventi | M155: 251 | N155: 77 | O155: 145 | P155: 32
A156: triedy | B156: 164 | C156: 81 | D156: 75 | E156: 8 | F156: 0.493902439 | G156: 0.4573170732 | H156: 0.0487804878 | L156: triedy | M156: -1 | N156: 0 | O156: 0 | P156: -1
A157: učitelia | B157: 902 | C157: 554 | D157: 295 | E157: 53 | F157: 0.6141906874 | G157: 0.3270509978 | H157: 0.05875831486 | L157: učitelia | M157: -167 | N157: -62 | O157: -96 | P157: -9
A158: učebne | B158: 616 | C158: 377 | D158: 183 | E158: 56 | F158: 0.612012987 | G158: 0.2970779221 | H158: 0.09090909091 | L158: učebne | M158: 0 | N158: 10 | O158: -10 | P158: 0
A159: školy | B159: 17 | C159: 6 | D159: 10 | E159: 1 | F159: 0.3529411765 | G159: 0.5882352941 | H159: 0.05882352941 | L159: školy | M159: 0 | N159: 0 | O159: 0 | P159: 0
H160: Zdroj: CVTI SR | P160: Zdroj: CVTI SR
BB163: Štruktúra ukazovateľov konzervatórií podľa zriaďovateľa | BI163: šk.r. 2017/2018
G164: šk.r. 2021/2022 | BB164: Ukazovatele | BC164: Absolútne početnosti | BG164: Relatívne početnosti
BC165: SR | BD165: štátne | BE165: súkromné | BF165: cirkevné | BG165: štátne | BH165: súkromné | BI165: cirkevné
BB167: novoprijatí | BC167: 546 | BD167: 356 | BE167: 167 | BF167: 23 | BG167: =BD167/$B168 -> 
BB168: žiaci | BC168: 2975 | BD168: 1861 | BE168: 951 | BF168: 163
BB169: absolventi | BC169: 682 | BD169: 443 | BE169: 208 | BF169: 31
BB170: triedy | BC170: 163 | BD170: 83 | BE170: 71 | BF170: 9
BB171: učitelia | BC171: 1064 | BD171: 620 | BE171: 386 | BF171: 58
BB172: učebne | BC172: 566 | BD172: 342 | BE172: 171 | BF172: 53
BB173: školy | BC173: 17 | BD173: 6 | BE173: 10 | BF173: 1
BI174: Zdroj: CVTI SR

Sheet Špeciálne školy
J1: späť na schému
A2: Špeciálne školy
A5: V špeciálnych školách (ŠŠ) sa uskutočňuje výchova a vzdelávanie detí a žiakov so zdravotným znevýhodnením.
A6: Deje sa tak v materských školách, zákadných školách, stredných školách, praktických školách a odborných učilištiach.
A12: A. Materské školy
A14: Vývoj ukazovateľov špeciálnych materských škôl (ŠMŠ) od roku 2000
A15: Ukazovatele | B15: Rok
B16: 2000 | C16: 2001 | D16: 2002 | E16: 2003 | F16: 2004 | G16: 2005 | H16: 2006 | I16: 2007 | J16: 2008 | K16: 2009 | L16: 2010 | M16: 2011 | N16: 2012 | O16: 2013 | P16: 2014 | Q16: 2015 | R16: 2016 | S16: 2017 | T16: 2018 | U16: 2019 | V16: 2020 | W16: 2021
A17: deti | B17: 768 | C17: 769 | D17: 809 | E17: 808 | F17: 773 | G17: 761 | H17: 814 | I17: 853 | J17: 889 | K17: 960 | L17: 993 | M17: 1023 | N17: 1067 | O17: 1105 | P17: 1209 | Q17: 1317 | R17: 1416 | S17: 1521 | T17: 1667 | U17: 1785 | V17: 1762 | W17: 1886
A18: triedy | B18: 96 | C18: 102 | D18: 107 | E18: 108 | F18: 102 | G18: 100 | H18: 104 | I18: 107 | J18: 110 | K18: 126 | L18: 127 | M18: 132 | N18: 137 | O18: 147 | P18: 160 | Q18: 177 | R18: 190 | S18: 213 | T18: 234 | U18: 247 | V18: 258 | W18: 276
A19: učitelia | B19: . | C19: 188 | D19: 210 | E19: 224 | F19: 191 | G19: 186 | H19: 198 | I19: 198 | J19: 202 | K19: 220 | L19: 235 | M19: 241 | N19: 250 | O19: 262 | P19: 280 | Q19: 307 | R19: 328 | S19: 367 | T19: 381 | U19: 418 | V19: 433 | W19: 422
A20: školy | B20: 34 | C20: 36 | D20: 37 | E20: 36 | F20: 37 | G20: 38 | H20: 41 | I20: 40 | J20: 43 | K20: 49 | L20: 50 | M20: 50 | N20: 51 | O20: 51 | P20: 54 | Q20: 58 | R20: 64 | S20: 67 | T20: 74 | U20: 80 | V20: 79 | W20: 84
A21: Poznámka: | W21: Zdroj: CVTI SR
A22: Údaje o žiakoch a triedach obsahujú aj počty z integrovaných tried pri bežných školách.
A77: B. Základné školy
A79: Poznámka:
A80: Údaje o novoprijatých, žiakoch, končiacich a triedach obsahujú aj počty z integrovaných tried pri bežných školách.
A82: Vývoj ukazovateľov špeciálnych základných škôl (ŠZŠ) od roku 2000
A83: Ukazovatele | B83: Rok
B84: 2000 | C84: 2001 | D84: 2002 | E84: 2003 | F84: 2004 | G84: 2005 | H84: 2006 | I84: 2007 | J84: 2008 | K84: 2009 | L84: 2010 | M84: 2011 | N84: 2012 | O84: 2013 | P84: 2014 | Q84: 2015 | R84: 2016 | S84: 2017 | T84: 2018 | U84: 2019 | V84: 2020 | W84: 2021
A85: novozaradení | B85: . | C85: 3337 | D85: 3589 | E85: 3020 | F85: 3540 | G85: 3832 | H85: 3765 | I85: 4537 | J85: 3972 | K85: 3858 | L85: 3986 | M85: 4045 | N85: 4083 | O85: 4030 | P85: 3910 | Q85: 3972 | R85: 3499 | S85: 3488 | T85: 3501 | U85: 3468 | V85: 3370 | W85: 3011
A86: žiaci | B86: 21717 | C86: 22537 | D86: 22897 | E86: 22843 | F86: 23663 | G86: 24349 | H86: 25106 | I86: 28060 | J86: 28328 | K86: 28543 | L86: 28948 | M86: 28828 | N86: 28724 | O86: 28625 | P86: 28331 | Q86: 28140 | R86: 27411 | S86: 26931 | T86: 26798 | U86: 26038 | V86: 25219 | W86: 25078
A87: končiaci | B87: . | C87: 2745 | D87: 2997 | E87: 2958 | F87: 2741 | G87: 2824 | H87: 2953 | I87: 3269 | J87: 3299 | K87: 3233 | L87: 3294 | M87: 3342 | N87: 3314 | O87: 3222 | P87: 3311 | Q87: 2969 | R87: 3015 | S87: 2928 | T87: 2759 | U87: 2979 | V87: 2938 | W87: 3023
A88: triedy | B88: 2522 | C88: 2655 | D88: 2663 | E88: 2683 | F88: 2694 | G88: 2752 | H88: 2693 | I88: 2910 | J88: 3245 | K88: 3377 | L88: 3448 | M88: 3492 | N88: 3468 | O88: 3483 | P88: 3482 | Q88: 3487 | R88: 3426 | S88: 3338 | T88: 3348 | U88: 3284 | V88: 3213 | W88: 3387
A89: učitelia | B89: 3359 | C89: 3562 | D89: 3634 | E89: 3735 | F89: 3730 | G89: 3765 | H89: 3704 | I89: 3977 | J89: 4133 | K89: 4285 | L89: 4333 | M89: 4413 | N89: 4393 | O89: 4371 | P89: 4362 | Q89: 4405 | R89: 4358 | S89: 4314 | T89: 4289 | U89: 4246 | V89: 4188 | W89: 3657
A90: učebne | B90: . | C90: 2828 | D90: 2960 | E90: 3031 | F90: 3145 | G90: 3244 | H90: 3372 | I90: 3672 | J90: 3854 | K90: 3955 | L90: 4062 | M90: 4102 | N90: 4150 | O90: 4225 | P90: 4239 | Q90: 4274 | R90: 4193 | S90: 4277 | T90: 4216 | U90: 4079 | V90: 3998 | W90: 2890
A91: školy | B91: 214 | C91: 237 | D91: 235 | E91: 234 | F91: 230 | G91: 230 | H91: 233 | I91: 238 | J91: 233 | K91: 236 | L91: 244 | M91: 239 | N91: 235 | O91: 233 | P91: 233 | Q91: 235 | R91: 234 | S91: 235 | T91: 234 | U91: 234 | V91: 237 | W91: 243
A92: Poznámka: základné školy (ŠŠ) sú agregátom základných škôl (ŠŠ) a špeciálnych základných škôl. | W92: Zdroj: CVTI SR
A145: C. Stredné školy
A147: Poznámka:
A148: Stredné špeciálne školy zahŕňaju GYM, SOŠ, OU a PŠ
A149: Údaje o žiakoch, absolventoch a triedach obsahujú aj počty z integrovaných tried pri bežných školách.
A151: Vývoj ukazovateľov špeciálnych stredných škôl (ŠSŠ) od roku 2000
A152: Ukazovatele | B152: Rok
B153: 2000 | C153: 2001 | D153: 2002 | E153: 2003 | F153: 2004 | G153: 2005 | H153: 2006 | I153: 2007 | J153: 2008 | K153: 2009 | L153: 2010 | M153: 2011 | N153: 2012 | O153: 2013 | P153: 2014 | Q153: 2015 | R153: 2016 | S153: 2017 | T153: 2018 | U153: 2019 | V153: 2020 | W153: 2021
A154: žiaci | B154: 4745 | C154: 5071 | D154: 5297 | E154: 5254 | F154: 5429 | G154: 5456 | H154: 5470 | I154: 5438 | J154: 5889 | K154: 5946 | L154: 6065 | M154: 6095 | N154: 6126 | O154: 6255 | P154: 6256 | Q154: 5967 | R154: 5882 | S154: 5926 | T154: 5834 | U154: 5898 | V154: 6055 | W154: 6098
A155: absolventi | B155: 1163 | C155: 1276 | D155: 1295 | E155: 1166 | F155: 1248 | G155: 1352 | H155: 1336 | I155: 1249 | J155: 1110 | K155: 1244 | L155: 1230 | M155: 1261 | N155: 1343 | O155: 1179 | P155: 1260 | Q155: 1212 | R155: 1141 | S155: 1193 | T155: 1055 | U155: 1117 | V155: 1135 | W155: 1318
A156: triedy | B156: 482 | C156: 524 | D156: 560 | E156: 572 | F156: 580 | G156: 591 | H156: 602 | I156: 620 | J156: 664 | K156: 690 | L156: 718 | M156: 728 | N156: 721 | O156: 749 | P156: 747 | Q156: 758 | R156: 757 | S156: 743 | T156: 736 | U156: 715 | V156: 721 | W156: 705
A157: učitelia | B157: 431 | C157: 516 | D157: 558 | E157: 543 | F157: 583 | G157: 579 | H157: 540 | I157: 609 | J157: 711 | K157: 769 | L157: 747 | M157: 726 | N157: 706 | O157: 712 | P157: 724 | Q157: 719 | R157: 772 | S157: 749 | T157: 756 | U157: 736 | V157: 758 | W157: 878
A158: učebne | B158: 416 | C158: 465 | D158: 510 | E158: 499 | F158: 480 | G158: 514 | H158: 535 | I158: 586 | J158: 621 | K158: 694 | L158: 716 | M158: 711 | N158: 751 | O158: 777 | P158: 813 | Q158: 870 | R158: 911 | S158: 946 | T158: 939 | U158: 924 | V158: 900 | W158: 871
A159: školy | B159: 56 | C159: 78 | D159: 85 | E159: 86 | F159: 92 | G159: 93 | H159: 102 | I159: 116 | J159: 111 | K159: 119 | L159: 123 | M159: 126 | N159: 127 | O159: 133 | P159: 138 | Q159: 142 | R159: 145 | S159: 150 | T159: 152 | U159: 155 | V159: 155 | W159: 120
W160: Zdroj: CVTI SR

Sheet ZUŠ
J1: späť na schému
A2: Základné umelecké školy
A4: Základná umelecká škola (ZUŠ) zabezpečuje umeleckú výchovu a vzdelávanie prevažne pre žiakov základnej školy. Môže
A5: však organizovať aj štúdium pre deti v predškolskom veku, žiakov stredných škôl a dospelých. Absolvovaním vzdelávacieho
A6: programu odboru vzdelania na ZUŠ môžu žiaci získať primárne alebo nižšie sekundárne umelecké vzdelanie.
A7: Škola pripravuje na štúdium odborov vzdelania umeleckého zamerania v stredných školách a v konzervatóriách.
A8: Pripravuje aj na štúdium na vysokých školách príslušného zamerania.
A14: A. Dynamika vývoja záklaných umeleckých škôl
A16: Vývoj ukazovateľov základných umeleckých škôl od roku 2000
A17: Ukazovatele | B17: Rok
B18: 2000 | C18: 2001 | D18: 2002 | E18: 2003 | F18: 2004 | G18: 2005 | H18: 2006 | I18: 2007 | J18: 2008 | K18: 2009 | L18: 2010 | M18: 2011 | N18: 2012 | O18: 2013 | P18: 2014 | Q18: 2015 | R18: 2016 | S18: 2017 | T18: 2018 | U18: 2019 | V18: 2020 | W18: 2021
A19: žiaci | B19: 95280 | C19: 96887 | D19: 97394 | E19: 98395 | F19: 102319 | G19: 105573 | H19: 117086 | I19: 122278 | J19: 128851 | K19: 134106 | L19: 134731 | M19: 139965 | N19: 147387 | O19: 150934 | P19: 157908 | Q19: 163465 | R19: 166597 | S19: 167994 | T19: 171235 | U19: 174474 | V19: 170455 | W19: 168787
A20: absolventi | B20: 6775 | C20: 7064 | D20: 7188 | E20: 7234 | F20: 7449 | G20: 7768 | H20: 7622 | I20: 7563 | J20: 7933 | K20: 7828 | L20: 7725 | M20: 7595 | N20: 17330 | O20: 18229 | P20: 17200 | Q20: 15261 | R20: 18805 | S20: 22011 | T20: 20341 | U20: 20417 | V20: 23220 | W20: 21425
A21: učitelia | B21: 4368 | C21: 4367 | D21: 4365 | E21: 4452 | F21: 4505 | G21: 4787 | H21: 5226 | I21: 5478 | J21: 5609 | K21: 5822 | L21: 5959 | M21: 6234 | N21: 6538 | O21: 6500 | P21: 6756 | Q21: 6989 | R21: 7214 | S21: 7385 | T21: 7563 | U21: 7702 | V21: 7710 | W21: 7634
A22: učebne | B22: 3763 | C22: 3792 | D22: 3824 | E22: 3884 | F22: 4065 | G22: 4282 | H22: 4743 | I22: 4890 | J22: 5074 | K22: 5284 | L22: 5375 | M22: 5657 | N22: 5904 | O22: 6127 | P22: 6383 | Q22: 6572 | R22: 6878 | S22: 7012 | T22: 7264 | U22: 7166 | V22: 7329 | W22: 7368
A23: školy | B23: 194 | C23: 197 | D23: 200 | E23: 205 | F23: 221 | G23: 229 | H23: 260 | I23: 268 | J23: 276 | K23: 282 | L23: 290 | M23: 300 | N23: 309 | O23: 317 | P23: 321 | Q23: 363 | R23: 360 | S23: 365 | T23: 365 | U23: 368 | V23: 374 | W23: 380
W24: Zdroj: CVTI SR
A76: B. Štruktúra ukazovateľov základných umeleckých škôl v školskom roku 2021/2022
A79: a ) podľa kraja
A82: Štruktúra ukazovateľov ZUŠ podľa krajov SR | J82: šk.r. 2021/2022 | L82: Medziročné rozdiely (2021-2020)
A83: Ukazovatele | B83: Absolútne početnosti | L83: Ukazovatele | M83: Absolútne početnosti
B84: SR | C84: kraje | M84: SR | N84: kraje
C85: BA | D85: TT | E85: TN | F85: NR | G85: ZA | H85: BB | I85: PO | J85: KE | N85: BA | O85: TT | P85: TN | Q85: NR | R85: ZA | S85: BB | T85: PO | U85: KE
A86: žiaci | B86: 168787 | C86: 23906 | D86: 13556 | E86: 19031 | F86: 13041 | G86: 29001 | H86: 18157 | I86: 31394 | J86: 20701 | L86: žiaci | M86: -1668 | N86: 3 | O86: -426 | P86: -87 | Q86: -792 | R86: 258 | S86: -211 | T86: -258 | U86: -155
A87: absolventi | B87: 21425 | C87: 2622 | D87: 1977 | E87: 2560 | F87: 1649 | G87: 3495 | H87: 2202 | I87: 4008 | J87: 2912 | L87: absolventi | M87: -1795 | N87: -667 | O87: 112 | P87: -58 | Q87: -145 | R87: -495 | S87: -296 | T87: -310 | U87: 64
A88: učitelia | B88: 7634 | C88: 1223 | D88: 572 | E88: 842 | F88: 599 | G88: 1293 | H88: 902 | I88: 1295 | J88: 908 | L88: učitelia | M88: -76 | N88: -9 | O88: -31 | P88: 34 | Q88: -50 | R88: 31 | S88: -26 | T88: -7 | U88: -18
A89: učebne | B89: 7368 | C89: 1034 | D89: 585 | E89: 864 | F89: 603 | G89: 1317 | H89: 837 | I89: 1281 | J89: 847 | L89: učebne | M89: 39 | N89: 22 | O89: 5 | P89: 38 | Q89: -28 | R89: 47 | S89: -48 | T89: 27 | U89: -24
A90: školy | B90: 380 | C90: 46 | D90: 32 | E90: 48 | F90: 29 | G90: 55 | H90: 56 | I90: 67 | J90: 47 | L90: školy | M90: 6 | N90: 1 | O90: 1 | P90: 2 | Q90: 0 | R90: 3 | S90: 0 | T90: -1 | U90: 0
J91: pokračovanie | U91: Zdroj: CVTI SR
A92: Ukazovatele | B92: Relatívne početnosti | L92: Legenda:
B93: SR | C93: kraje | L93: BA | M93: Bratislavský kraj
C94: BA | D94: TT | E94: TN | F94: NR | G94: ZA | H94: BB | I94: PO | J94: KE | L94: TT | M94: Trnavský kraj
A95: žiaci | B95: =SUM(C95:J95) -> 1 | C95: =C86/$B86 -> 0.1416341306 | D95: =D86/$B86 -> 0.08031424221 | E95: 0.1127515745 | F95: 0.07726305936 | G95: 0.1718201046 | H95: 0.1075734506 | I95: 0.1859977368 | J95: 0.1226457014 | L95: TN | M95: Trenčiansky kraj
A96: absolventi | B96: =SUM(C96:J96) -> 1 | C96: =C87/$B87 -> 0.1223803967 | D96: 0.09227537923 | E96: 0.1194865811 | F96: 0.07696616103 | G96: 0.1631271879 | H96: 0.1027771295 | I96: 0.1870711785 | J96: =J87/$B87 -> 0.135915986 | L96: NR | M96: Nitriansky kraj
A97: učitelia | B97: =SUM(C97:J97) -> 1 | C97: 0.160204349 | D97: 0.07492795389 | E97: 0.110296044 | F97: 0.0784647629 | G97: 0.1693738538 | H97: 0.1181556196 | I97: 0.1696358397 | J97: 0.1189415772 | L97: ZA | M97: Žilinský kraj
A98: učebne | B98: =SUM(C98:J98) -> 1 | C98: 0.1403365907 | D98: 0.07939739414 | E98: 0.1172638436 | F98: 0.08184039088 | G98: 0.1787459283 | H98: 0.1135993485 | I98: 0.1738599349 | J98: =J89/$B89 -> 0.1149565689 | L98: BB | M98: Banskobystrický kraj
A99: školy | B99: =SUM(C99:J99) -> 1 | C99: 0.1210526316 | D99: 0.08421052632 | E99: 0.1263157895 | F99: 0.07631578947 | G99: 0.1447368421 | H99: 0.1473684211 | I99: 0.1763157895 | J99: =J90/$B90 -> 0.1236842105 | L99: PO | M99: Prešovský kraj
J100: Zdroj: CVTI SR | L100: KE | M100: Košický kraj
J102: šk.r. 2021/2022
A130: b ) podľa zriaďovateľa
A132: Štruktúra ukazovateľov ZUŠ podľa zriaďovateľa | H132: šk.r. 2021/2022 | L132: Medziročné rozdiely (2021-2020)
A133: Ukazovatele | B133: Absolútne početnosti | F133: Relatívne početnosti | L133: Ukazovatele | M133: Absolútne početnosti
B134: SR | C134: štátne | D134: súkromné | E134: cirkevné | F134: štátne | G134: súkromné | H134: cirkevné | M134: SR | N134: štátne | O134: súkromné | P134: cirkevné
A136: žiaci | B136: 168787 | C136: 101840 | D136: 61530 | E136: 5417 | F136: =C136/$B136 -> 0.6033640032 | G136: 0.3645422929 | H136: 0.0320937039 | L136: žiaci | M136: -1668 | N136: -2945 | O136: 1231 | P136: 46
A137: absolventi | B137: 21425 | C137: 15353 | D137: 5526 | E137: 546 | F137: 0.7165927655 | G137: 0.2579229872 | H137: 0.02548424737 | L137: absolventi | M137: 1008 | N137: 258 | O137: 913 | P137: -163
A138: učitelia | B138: 7634 | C138: 5033 | D138: 2308 | E138: 293 | F138: 0.6592873985 | G138: 0.3023316741 | H138: =E138/$B138 -> 0.03838092743 | L138: učitelia | M138: -76 | N138: -142 | O138: 58 | P138: 8
A139: učebne | B139: 7368 | C139: 4838 | D139: 2262 | E139: 268 | F139: 0.6566232356 | G139: =D139/$B139 -> 0.3070032573 | H139: =E139/$B139 -> 0.03637350706 | L139: učebne | M139: 39 | N139: -52 | O139: 108 | P139: -17
A140: školy | B140: 380 | C140: 200 | D140: 168 | E140: 12 | F140: 0.5263157895 | G140: 0.4421052632 | H140: =E140/$B140 -> 0.03157894737 | L140: školy | M140: 6 | N140: -1 | O140: 6 | P140: 1
H141: Zdroj: CVTI SR | P141: Zdroj: CVTI SR
H143: šk.r. 2021/2022

Sheet Jazykové školy
J1: späť na schému
A2: Jazykové školy
A4: Jazyková škola (JŠ) poskytuje jazykové vzdelávanie v cudzích jazykoch, organizuje aj vyučovanie cudzích jazykov
A5: s odborným zameraním a pripravuje na prekladateľskú a tlmočnícku činnosť. Vyučovanie je organizované v kurzoch pre
A6: žiakov ZŠ, SŠ, VŠ a dospelých. Absolvovaním vzdelávacích programov môže absolvent získať primárne (A2), sekundárne
A7: (B2, C1) a postsekundárne jazykové vzdelanie.
A13: A. Dynamika vývoja jazykových škôl
A15: Vývoj ukazovateľov jazykových škôl od roku 2000
A16: Ukazovatele | B16: Rok
B17: 2000 | C17: 2001 | D17: 2002 | E17: 2003 | F17: 2004 | G17: 2005 | H17: 2006 | I17: 2007 | J17: 2008 | K17: 2009 | L17: 2010 | M17: 2011 | N17: 2012 | O17: 2013 | P17: 2014 | Q17: 2015 | R17: 2016 | S17: 2017 | T17: 2018 | U17: 2019 | V17: 2020 | W17: 2021
A18: žiaci | B18: 22812 | C18: 25050 | D18: 25591 | E18: 27562 | F18: 29802 | G18: 29977 | H18: 30144 | I18: 29211 | J18: 27036 | K18: 24454 | L18: 24006 | M18: 23063 | N18: 22562 | O18: 22529 | P18: 21460 | Q18: 21146 | R18: 20454 | S18: 20447 | T18: 21797 | U18: 22512 | V18: 18059 | W18: 17390
A19: absolventi | B19: 2076 | C19: 2157 | D19: 2200 | E19: 2341 | F19: 2394 | G19: 2326 | H19: 2618 | I19: 2377 | J19: 2205 | K19: 3241 | L19: 3115 | M19: 2816 | N19: 2637 | O19: 2351 | P19: 2002 | Q19: 1914 | R19: 1641 | S19: 1501 | T19: 1754 | U19: 1712 | V19: 965 | W19: 958
A20: kurzy | B20: 1306 | C20: 1444 | D20: 1495 | E20: 1560 | F20: 1736 | G20: 1844 | H20: 2134 | I20: 2360 | J20: 2317 | K20: 1894 | L20: 1865 | M20: 1841 | N20: 1861 | O20: 2154 | P20: 2018 | Q20: 2051 | R20: 2118 | S20: 2284 | T20: 2432 | U20: 2660 | V20: 2187 | W20: 2171
A21: učitelia | B21: 471 | C21: 518 | D21: 504 | E21: 519 | F21: 565 | G21: 594 | H21: 626 | I21: 691 | J21: 870 | K21: 572 | L21: 555 | M21: 562 | N21: 575 | O21: 620 | P21: 554 | Q21: 651 | R21: 616 | S21: 648 | T21: 682 | U21: 721 | V21: 549 | W21: 578
A22: školy | B22: 28 | C22: 30 | D22: 29 | E22: 28 | F22: 32 | G22: 39 | H22: 41 | I22: 43 | J22: 42 | K22: 41 | L22: 43 | M22: 42 | N22: 43 | O22: 41 | P22: 39 | Q22: 41 | R22: 40 | S22: 40 | T22: 39 | U22: 40 | V22: 40 | W22: 38
W23: Zdroj: CVTI SR
A76: B. Štruktúra ukazovateľov jazykových škôl v školskom roku 2021/2022
A78: a ) podľa kraja
A81: Štruktúra ukazovateľov JŠ podľa krajov SR | J81: šk.r. 2021/2022 | L81: Medziročné rozdiely (2021-2020)
A82: Ukazovatele | B82: Absolútne početnosti | L82: Ukazovatele | M82: Absolútne početnosti
B83: SR | C83: kraje | M83: SR | N83: kraje
C84: BA | D84: TT | E84: TN | F84: NR | G84: ZA | H84: BB | I84: PO | J84: KE | N84: BA | O84: TT | P84: TN | Q84: NR | R84: ZA | S84: BB | T84: PO | U84: KE
A85: žiaci | B85: 17390 | C85: 7041 | D85: 344 | E85: 498 | F85: 683 | G85: 2450 | H85: 2310 | I85: 2107 | J85: 1957 | L85: žiaci | M85: -669 | N85: 309 | O85: -15 | P85: -29 | Q85: -187 | R85: -425 | S85: 3 | T85: -386 | U85: 61
A86: absolventi | B86: 958 | C86: 376 | D86: 0 | E86: 60 | F86: 119 | G86: 168 | H86: 0 | I86: 117 | J86: 118 | L86: absolventi | M86: -7 | N86: 0 | O86: 0 | P86: -9 | Q86: -45 | R86: 105 | S86: 0 | T86: 11 | U86: -69
A87: kurzy | B87: 2171 | C87: 1175 | D87: 29 | E87: 46 | F87: 117 | G87: 215 | H87: 247 | I87: 150 | J87: 192 | L87: kurzy | M87: -16 | N87: 18 | O87: -4 | P87: 0 | Q87: -18 | R87: -28 | S87: 53 | T87: -30 | U87: -7
A88: učitelia | B88: 578 | C88: 261 | D88: 19 | E88: 22 | F88: 35 | G88: 43 | H88: 70 | I88: 55 | J88: 73 | L88: učitelia | M88: 29 | N88: -7 | O88: 0 | P88: 15 | Q88: 1 | R88: -11 | S88: 31 | T88: -5 | U88: 5
A89: školy | B89: 38 | C89: 5 | D89: 4 | E89: 1 | F89: 3 | G89: 6 | H89: 5 | I89: 3 | J89: 11 | L89: školy | M89: -2 | N89: 0 | O89: 0 | P89: 0 | Q89: 0 | R89: -1 | S89: -1 | T89: 0 | U89: 0
J90: pokračovanie | U90: Zdroj: CVTI SR
A91: Ukazovatele | B91: Relatívne početnosti | L91: Legenda:
B92: SR | C92: kraje | L92: BA | M92: Bratislavský kraj
C93: BA | D93: TT | E93: TN | F93: NR | G93: ZA | H93: BB | I93: PO | J93: KE | L93: TT | M93: Trnavský kraj
A94: žiaci | B94: =SUM(C94:J94) -> 1 | C94: =C85/$B85 -> 0.4048878666 | D94: =D85/$B85 -> 0.01978148361 | E94: 0.02863714779 | F94: 0.03927544566 | G94: 0.1408855664 | H94: 0.1328349626 | I94: 0.1211615871 | J94: 0.1125359402 | L94: TN | M94: Trenčiansky kraj
A95: absolventi | B95: =SUM(C95:J95) -> 1 | C95: =C86/$B86 -> 0.3924843424 | D95: 0 | E95: 0.06263048017 | F95: 0.124217119 | G95: 0.1753653445 | H95: 0 | I95: 0.1221294363 | J95: =J86/$B86 -> 0.1231732777 | L95: NR | M95: Nitriansky kraj
A96: kurzy | B96: =SUM(C96:J96) -> 1 | C96: 0.5412252418 | D96: 0.01335789959 | E96: 0.02118839245 | F96: 0.05389221557 | G96: 0.09903270382 | H96: 0.1137724551 | I96: 0.06909258406 | J96: 0.0884385076 | L96: ZA | M96: Žilinský kraj
A97: učitelia | B97: =SUM(C97:J97) -> 1 | C97: 0.4515570934 | D97: 0.03287197232 | E97: 0.03806228374 | F97: 0.06055363322 | G97: 0.07439446367 | H97: 0.1211072664 | I97: 0.09515570934 | J97: =J88/$B88 -> 0.1262975779 | L97: BB | M97: Banskobystrický kraj
A98: školy | B98: =SUM(C98:J98) -> 1 | C98: 0.1315789474 | D98: 0.1052631579 | E98: 0.02631578947 | F98: 0.07894736842 | G98: 0.1578947368 | H98: 0.1315789474 | I98: 0.07894736842 | J98: =J89/$B89 -> 0.2894736842 | L98: PO | M98: Prešovský kraj
J99: Zdroj: CVTI SR | L99: KE | M99: Košický kraj
J102: šk.r. 2021/2022
BM108: Štruktúra ukazovateľov JŠ podľa krajov SR | BV108: šk.r. 2016/2017
BM109: Ukazovatele | BN109: Absolútne početnosti
BN110: SR | BO110: kraje
BO111: BA | BP111: TT | BQ111: TN | BR111: NR | BS111: ZA | BT111: BB | BU111: PO | BV111: KE
BM112: žiaci | BN112: 20454 | BO112: 6796 | BP112: 483 | BQ112: 1153 | BR112: 940 | BS112: 3772 | BT112: 1290 | BU112: 3235 | BV112: 2785
BM113: absolventi | BN113: 1641 | BO113: 600 | BP113: 0 | BQ113: 63 | BR113: 87 | BS113: 513 | BT113: 0 | BU113: 152 | BV113: 226
BM114: kurzy | BN114: 2118 | BO114: 917 | BP114: 53 | BQ114: 87 | BR114: 165 | BS114: 321 | BT114: 135 | BU114: 218 | BV114: 222
BM115: učitelia | BN115: 616 | BO115: 274 | BP115: 23 | BQ115: 35 | BR115: 40 | BS115: 37 | BT115: 47 | BU115: 69 | BV115: 91
BM116: školy | BN116: 40 | BO116: 5 | BP116: 4 | BQ116: 1 | BR116: 3 | BS116: 7 | BT116: 7 | BU116: 3 | BV116: 10
A127: b ) podľa zriaďovateľa
A129: Štruktúra ukazovateľov JŠ podľa zriaďovateľa | H129: šk.r. 2021/2022 | L129: Medziročné rozdiely (2021-2020)
A130: Ukazovatele | B130: Absolútne početnosti | F130: Relatívne početnosti | L130: Ukazovatele | M130: Absolútne početnosti
B131: SR | C131: štátne | D131: súkromné | E131: cirkevné | F131: štátne | G131: súkromné | H131: cirkevné | M131: SR | N131: štátne | O131: súkromné | P131: cirkevné
A133: žiaci | B133: 17390 | C133: 8682 | D133: 8643 | E133: 65 | F133: =C133/$B133 -> 0.4992524439 | G133: 0.4970097757 | H133: 0.003737780334 | L133: žiaci | M133: -669 | N133: -877 | O133: 244 | P133: -36
A134: absolventi | B134: 958 | C134: 897 | D134: 61 | E134: 0 | F134: 0.9363256785 | G134: 0.0636743215 | H134: 0 | L134: absolventi | M134: -7 | N134: 15 | O134: -22 | P134: 0
A135: kurzy | B135: 2171 | C135: 775 | D135: 1388 | E135: 8 | F135: 0.356978351 | G135: 0.6393367112 | H135: 0.003684937817 | L135: kurzy | M135: -16 | N135: -67 | O135: 53 | P135: -2
A136: učitelia | B136: 578 | C136: 252 | D136: 320 | E136: 6 | F136: 0.4359861592 | G136: 0.553633218 | H136: 0.01038062284 | L136: učitelia | M136: 29 | N136: 3 | O136: 27 | P136: -1
A137: školy | B137: 38 | C137: 25 | D137: 12 | E137: 1 | F137: 0.6578947368 | G137: 0.3157894737 | H137: 0.02631578947 | L137: školy | M137: -2 | N137: -3 | O137: 1 | P137: 0
H138: Zdroj: CVTI SR | P138: Zdroj: CVTI SR
H141: šk.r. 2021/2022
BO144: Štruktúra ukazovateľov JŠ podľa zriaďovateľa | BV144: šk.r. 2016/2017
BO145: Ukazovatele | BP145: Absolútne početnosti | BT145: Relatívne početnosti
BP146: SR | BQ146: štátne | BR146: súkromné | BS146: cirkevné | BT146: štátne | BU146: súkromné | BV146: cirkevné
BO148: žiaci | BP148: 20454 | BQ148: 14757 | BR148: 5572 | BS148: 125 | BT148: =BQ148/$B148 -> 
BO149: absolventi | BP149: 1641 | BQ149: 1592 | BR149: 49 | BS149: 0
BO150: kurzy | BP150: 2118 | BQ150: 1065 | BR150: 1035 | BS150: 18
BO151: učitelia | BP151: 616 | BQ151: 309 | BR151: 294 | BS151: 13
BO152: školy | BP152: 40 | BQ152: 26 | BR152: 13 | BS152: 1
BV153: Zdroj: CVTI SR

Sheet Školské zariadenia
J1: späť na schému
A2: Školské zariadenia
A5: Sústavu školských zariadení tvoria:
A7: * školské výchovno-vzdelávacie zariadenia | D7: (školský klub detí, školské stredisko záujmovej činnosti, centrum voľného času,
D8: školský internát, školské hospodárstvo, stredisko odbornej praxe),
A10: * špeciálne výchovné zariadenia | D10: (diagnostické centrum, reedukačné centrum, liečebno-výchovné sanatórium),
A12: * školské zariadenia výchovného poradenstva | D12: (centrum pedagogicko-psychologického poradenstva a prevencie,
A13: a prevencie | D13: centrum špeciálno-pedagogického poradenstva),
A15: * školské účelové zariadenia | D15: (škola v prírode, zariadenia školského stravovania, stredisko služieb škole).
A21: A. Školské kluby detí
A23: Vývoj školských klubov detí od roku 2000
A24: Ukazovatele | B24: Rok
B25: 2000 | C25: 2001 | D25: 2002 | E25: 2003 | F25: 2004 | G25: 2005 | H25: 2006 | I25: 2007 | J25: 2008 | K25: 2009 | L25: 2010 | M25: 2011 | N25: 2012 | O25: 2013 | P25: 2014 | Q25: 2015 | R25: 2016 | S25: 2017 | T25: 2018 | U25: 2019 | V25: 2020 | W25: 2021
A26: žiaci | B26: 139056 | C26: 135389 | D26: 133539 | E26: 128549 | F26: 131001 | G26: 115574 | H26: 120014 | I26: 123636 | J26: 123085 | K26: 122431 | L26: 121832 | M26: 123190 | N26: 127847 | O26: 129794 | P26: 134650 | Q26: 141493 | R26: 149348 | S26: 156122 | T26: 161102 | U26: 167923 | V26: 166526 | W26: 166496
A27: kluby | B27: 2273 | C27: 2276 | D27: 2285 | E27: 2285 | F27: 2213 | G27: 2186 | H27: 2169 | I27: 2115 | J27: 2103 | K27: 2101 | L27: 2111 | M27: 2124 | N27: 2105 | O27: 2105 | P27: 2097 | Q27: 2100 | R27: 2117 | S27: 2120 | T27: 2143 | U27: 2113 | V27: 2114 | W27: 2108
W28: Zdroj: CVTI SR
A56: B. Zariadenia na voľný čas a záujmovú činnosť (centrá voľného času a školské strediská záujmovej činnosti)
A58: Vývoj zariadení na voľný čas a záujmovú činnosť od roku 2000
A59: Ukazovatele | B59: Rok
B60: 2000 | C60: 2001 | D60: 2002 | E60: 2003 | F60: 2004 | G60: 2005 | H60: 2006 | I60: 2007 | J60: 2008 | K60: 2009 | L60: 2010 | M60: 2011 | N60: 2012 | O60: 2013 | P60: 2014 | Q60: 2015 | R60: 2016 | S60: 2017 | T60: 2018 | U60: 2019 | V60: 2020 | W60: 2021
A61: členovia | B61: 71261 | C61: 69711 | D61: 69633 | E61: 72151 | F61: 82983 | G61: 102268 | H61: 128506 | I61: 153701 | J61: 188996 | K61: 326051 | L61: 273724 | M61: 298764 | N61: 318376 | O61: 181624 | P61: 175607 | Q61: 173628 | R61: 171203 | S61: 174891 | T61: 176727 | U61: 174397 | V61: 162513 | W61: 143722
A62: pedagogogickí zamestnanci | B62: 2384 | C62: 2357 | D62: 2291 | E62: 2330 | F62: 2593 | G62: 3673 | H62: 4554 | I62: 5505 | J62: 7046 | K62: 9734 | L62: 9888 | M62: 11820 | N62: 11635 | O62: 6728 | P62: 6708 | Q62: 6146 | R62: 6121 | S62: 5985 | T62: 5999 | U62: 6113 | V62: 5722 | W62: 3561
A63: zariadenia | B63: 147 | C63: 146 | D63: 151 | E63: 155 | F63: 164 | G63: 213 | H63: 253 | I63: 305 | J63: 339 | K63: 407 | L63: 424 | M63: 456 | N63: 497 | O63: 495 | P63: 476 | Q63: 452 | R63: 451 | S63: 445 | T63: 444 | U63: 439 | V63: 439 | W63: 435
A64: Poznámka: uvedení len členovia pravidelnej záujmovej činnosti | W64: Zdroj: CVTI SR
A92: C. Školské internáty
A94: Vývoj školských internátov od roku 2000
A95: Ukazovatele | B95: Rok
B96: 2000 | C96: 2001 | D96: 2002 | E96: 2003 | F96: 2004 | G96: 2005 | H96: 2006 | I96: 2007 | J96: 2008 | K96: 2009 | L96: 2010 | M96: 2011 | N96: 2012 | O96: 2013 | P96: 2014 | Q96: 2015 | R96: 2016 | S96: 2017 | T96: 2018 | U96: 2019 | V96: 2020 | W96: 2021
A97: ubytovaní | B97: 16400 | C97: 25083 | D97: 25555 | E97: 26628 | F97: 24921 | G97: 25421 | H97: 24765 | I97: 23892 | J97: 22743 | K97: 24359 | L97: 23539 | M97: 22612 | N97: 22328 | O97: 21709 | P97: 21610 | Q97: 21182 | R97: 22457 | S97: 22120 | T97: 21673 | U97: 21351 | V97: 21157 | W97: 21140
A98: vychovávatelia | B98: 709 | C98: 1192 | D98: 1203 | E98: 1274 | F98: 1155 | G98: 1170 | H98: 1141 | I98: 1120 | J98: 1089 | K98: 1617 | L98: 1571 | M98: 1486 | N98: 1448 | O98: 1411 | P98: 1395 | Q98: 1357 | R98: 1374 | S98: 1379 | T98: 1385 | U98: 1325 | V98: 1349 | W98: 1325
A99: internáty | B99: 121 | C99: 241 | D99: 239 | E99: 239 | F99: 218 | G99: 225 | H99: 218 | I99: 202 | J99: 187 | K99: 252 | L99: 249 | M99: 240 | N99: 233 | O99: 227 | P99: 225 | Q99: 222 | R99: 218 | S99: 219 | T99: 216 | U99: 214 | V99: 215 | W99: 213
A100: Poznámka: vychovávatelia zahŕňajú aj počty pomocných vychovávateľov, ubytovaní zahŕňajú len žiakov, neobsahujú iné ubytované osoby | W100: Zdroj: CVTI SR
A128: D. Špeciálne výchovné zariadenia
A130: Vývoj špeciálnych výchovných zariadení od roku 2000
A131: Ukazovatele | B131: Rok
B132: 2000 | C132: 2001 | D132: 2002 | E132: 2003 | F132: 2004 | G132: 2005 | H132: 2006 | I132: 2007 | J132: 2008 | K132: 2009 | L132: 2010 | M132: 2011 | N132: 2012 | O132: 2013 | P132: 2014 | Q132: 2015 | R132: 2016 | S132: 2017 | T132: 2018 | U132: 2019 | V132: 2020 | W132: 2021
A133: zariadenia | B133: 29 | C133: 29 | D133: 28 | E133: 29 | F133: 28 | G133: 30 | H133: 31 | I133: 32 | J133: 31 | K133: 27 | L133: 26 | M133: 27 | N133: 26 | O133: 26 | P133: 26 | Q133: 26 | R133: 26 | S133: 27 | T133: 27 | U133: 27 | V133: 27 | W133: 27
A134: Reedukačné centrum
A135: Liečebno-výchovné sanatórium
A136: Diagnostické centrum
W137: Zdroj: CVTI SR
A138: Medzi špeciálne výchovné zariadenia patria: | D138: Aktuálne:
A139: diagnostické centrum pre deti | D139: Reedukačné centrum
A140: diagnostické centrum pre mládež | D140: Liečebno-výchovné sanatórium
A141: reedukačný domov pre matky s deťmi | D141: Diagnostické centrum
A142: reedukačný detský domov
A143: reedukačný domov pre mládež
A144: liečebno-výchovné sanatórium
A150: E. Stravovanie detí a mládeže
A152: Vývoj stravovania detí a mládeže od roku 2000
A153: Ukazovatele | B153: Rok
B154: 2000 | C154: 2001 | D154: 2002 | E154: 2003 | F154: 2004 | G154: 2005 | H154: 2006 | I154: 2007 | J154: 2008 | K154: 2009 | L154: 2010 | M154: 2011 | N154: 2012 | O154: 2013 | P154: 2014 | Q154: 2015 | R154: 2016 | S154: 2017 | T154: 2018 | U154: 2019 | V154: 2020 | W154: 2021
A155: stravovaní žiaci | B155: 518413 | C155: 523470 | D155: 521459 | E155: 517215 | F155: 544094 | G155: 531984 | H155: 546439 | I155: 539758 | J155: 529753 | K155: 524940 | L155: 525607 | M155: 528400 | N155: 527033 | O155: 524796 | P155: 534339 | Q155: 539810 | R155: 547378 | S155: 555264 | T155: 567923 | U155: 611270 | V155: 601291 | W155: 582027
A156: jedálne | B156: 4657 | C156: 4786 | D156: 4790 | E156: 4779 | F156: 4687 | G156: 4459 | H156: 4365 | I156: 4320 | J156: 4258 | K156: 4257 | L156: 4267 | M156: 4247 | N156: 4258 | O156: 4248 | P156: 4278 | Q156: 4303 | R156: 4322 | S156: 4346 | T156: 4372 | U156: 4393 | V156: 4399 | W156: 4460
A157: Poznámka: ukazovatele stravovania detí a mládeže sa vzťahujú na jedálne pri materských, základných, stredných školách, | W157: Zdroj: CVTI SR
A158: reedukačných centrách, školských internátoch a internátnych školách
